Publisher Label,Publisher URI,"Supplier","Net Amount (£)","Organisational Unit","Merchant Category Code","Purpose","Payment Date"
"Wolverhampton City Council","http://opendatacommunities.org/id/metropolitan-district-council/wolverhampton","Amazon EU","5.19","Parent / Partnership Service","5969","Equipment - Purchase","29/02/2016"
"Wolverhampton City Council","http://opendatacommunities.org/id/metropolitan-district-council/wolverhampton","NATWEST BANK","70.00","Ernest Bold Court","6011","Fixtures and Fittings - Purchases","29/02/2016"
"Wolverhampton City Council","http://opendatacommunities.org/id/metropolitan-district-council/wolverhampton","ASDA SUPERSTORE","11.15","Employment Programmes","5411","Provisions (Not for resale)","29/02/2016"
"Wolverhampton City Council","http://opendatacommunities.org/id/metropolitan-district-council/wolverhampton","WIX.COM","46.57","Technical Support","5968","Subscriptions","29/02/2016"
"Wolverhampton City Council","http://opendatacommunities.org/id/metropolitan-district-council/wolverhampton","PREMIER INN 44536670","124.17","Benefits","5812","Accommodation Costs","29/02/2016"
"Wolverhampton City Council","http://opendatacommunities.org/id/metropolitan-district-council/wolverhampton","LEWISHAM COUNCIL INT","21.70","Legal Services","9399","Services - Fees and Charges","29/02/2016"
"Wolverhampton City Council","http://opendatacommunities.org/id/metropolitan-district-council/wolverhampton","SHOE ZONE LTD 1165","62.47","Neighbourhood Management Central","5661","Clothing / Uniforms","29/02/2016"
"Wolverhampton City Council","http://opendatacommunities.org/id/metropolitan-district-council/wolverhampton","Virgintrains.co.uk","92.10","Black Art Movement","4112","Public Transport","29/02/2016"
"Wolverhampton City Council","http://opendatacommunities.org/id/metropolitan-district-council/wolverhampton","Amazon UK Marketplace","1.21","Central Baths","5942","Books","29/02/2016"
"Wolverhampton City Council","http://opendatacommunities.org/id/metropolitan-district-council/wolverhampton","WWW.MISCO.CO.UK","195.53","Commissioning Disabilities","5045","Computing - Purchase of Hardware","29/02/2016"
"Wolverhampton City Council","http://opendatacommunities.org/id/metropolitan-district-council/wolverhampton","BARCLAYS BANK PLC","240.00","Valley Park - CIN SWU S17","6011","Financial Assistance In Exceptional Circ","29/02/2016"
"Wolverhampton City Council","http://opendatacommunities.org/id/metropolitan-district-council/wolverhampton","TESCO DIRECT","38.08","Bilston Museum","5999","Equipment - Purchase","29/02/2016"
"Wolverhampton City Council","http://opendatacommunities.org/id/metropolitan-district-council/wolverhampton","SHOE ZONE LTD 1165","46.85","Neighbourhood Management Central","5661","Clothing / Uniforms","29/02/2016"
"Wolverhampton City Council","http://opendatacommunities.org/id/metropolitan-district-council/wolverhampton","ASDA HOME SHOPPING","99.67","Ernest Bold Court","5411","Provisions (Not for resale)","29/02/2016"
"Wolverhampton City Council","http://opendatacommunities.org/id/metropolitan-district-council/wolverhampton","WM MORRISON 024","3.65","Ernest Bold Court","5411","Provisions (Not for resale)","29/02/2016"
"Wolverhampton City Council","http://opendatacommunities.org/id/metropolitan-district-council/wolverhampton","PAYPAL  WHITEHINGEL","13.50","Civic Hall Administration Overhead Acct","5945","Equipment - Purchase","29/02/2016"
"Wolverhampton City Council","http://opendatacommunities.org/id/metropolitan-district-council/wolverhampton","Wix.com","46.57","Technical Support","5817","Computing - Purchase of Software","29/02/2016"
"Wolverhampton City Council","http://opendatacommunities.org/id/metropolitan-district-council/wolverhampton","BT PAY BY PHONE","62.97","Makers Dozen","4814","Comms - Telephone Call charges","29/02/2016"
"Wolverhampton City Council","http://opendatacommunities.org/id/metropolitan-district-council/wolverhampton","CUMMINGS BROTHERS LOCK","36.50","Caretakers Community Centre","7399","R&M - Departmental planned (external)","29/02/2016"
"Wolverhampton City Council","http://opendatacommunities.org/id/metropolitan-district-council/wolverhampton","SHOE ZONE LTD 1165","46.85","Neighbourhood Management Central","5661","Clothing / Uniforms","29/02/2016"
"Wolverhampton City Council","http://opendatacommunities.org/id/metropolitan-district-council/wolverhampton","SCREWFIX DIRECT","9.15","Caretakers Community Centre","5211","R&M - Departmental planned (external)","29/02/2016"
"Wolverhampton City Council","http://opendatacommunities.org/id/metropolitan-district-council/wolverhampton","KFC MANDER CENTRE","26.64","Youth Service - General","5814","Educ Trips, Holidays, Outings, Activity","29/02/2016"
"Wolverhampton City Council","http://opendatacommunities.org/id/metropolitan-district-council/wolverhampton","FTPE WEBTIS 1","43.10","LAC Transitions Team","4112","Client Allowances","29/02/2016"
"Wolverhampton City Council","http://opendatacommunities.org/id/metropolitan-district-council/wolverhampton","NATWEST BANK","10.00","Ernest Bold Court","6011","Fixtures and Fittings - Purchases","29/02/2016"
"Wolverhampton City Council","http://opendatacommunities.org/id/metropolitan-district-council/wolverhampton","WWW.SEVERNTRENTSEARCHE","546.00","Legal Services","4900","Electricity","29/02/2016"
"Wolverhampton City Council","http://opendatacommunities.org/id/metropolitan-district-council/wolverhampton","ASDA SUPERSTORE","200.00","Valley Park - CIN SWU S17","5411","Provisions (Not for resale)","29/02/2016"
"Wolverhampton City Council","http://opendatacommunities.org/id/metropolitan-district-council/wolverhampton","NIJJAR SPRMK LTD 48994","174.48","Ekta Day Centre","5411","Provisions (Not for resale)","29/02/2016"
"Wolverhampton City Council","http://opendatacommunities.org/id/metropolitan-district-council/wolverhampton","Amazon UK Marketplace","32.49","Licensing - Licensing Act 2003","5942","Printing","29/02/2016"
"Wolverhampton City Council","http://opendatacommunities.org/id/metropolitan-district-council/wolverhampton","NATWEST BANK","20.00","Ernest Bold Court","6011","Educ Trips, Holidays, Outings, Activity","29/02/2016"
"Wolverhampton City Council","http://opendatacommunities.org/id/metropolitan-district-council/wolverhampton","SAINSBURYS 2040","25.00","Mayoral Expenses","5411","Clothing / Uniforms","29/02/2016"
"Wolverhampton City Council","http://opendatacommunities.org/id/metropolitan-district-council/wolverhampton","NATWEST BANK","10.00","Ernest Bold Court","6011","Financial Assistance In Exceptional Circ","29/02/2016"
"Wolverhampton City Council","http://opendatacommunities.org/id/metropolitan-district-council/wolverhampton","REGISTRARS OFFICE","29.00","Legal Services","8299","Training Expenses","29/02/2016"
"Wolverhampton City Council","http://opendatacommunities.org/id/metropolitan-district-council/wolverhampton","HALFORDS ON LINE","360.15","Public Health Management Support","5940","Equipment - Purchase","29/02/2016"
"Wolverhampton City Council","http://opendatacommunities.org/id/metropolitan-district-council/wolverhampton","THE RANGE","25.97","Specialist Support Service - North","5311","Equipment - Purchase","29/02/2016"
"Wolverhampton City Council","http://opendatacommunities.org/id/metropolitan-district-council/wolverhampton","ARGOS LTD","6.99","Fostering Team & Allowances","5310","Equipment - Purchase","29/02/2016"
"Wolverhampton City Council","http://opendatacommunities.org/id/metropolitan-district-council/wolverhampton","MARKS & SPENCER","111.67","Mayoral Expenses","5411","Clothing / Uniforms","29/02/2016"
"Wolverhampton City Council","http://opendatacommunities.org/id/metropolitan-district-council/wolverhampton","PURE360","224.00","Civic Hall Administration Overhead Acct","7372","Marketing \ Non-staff advertising","29/02/2016"
"Wolverhampton City Council","http://opendatacommunities.org/id/metropolitan-district-council/wolverhampton","MIDLAND DOMESTIC","-140.00","Warstones - CIN SWU S17","5722","Equipment - Purchase","29/02/2016"
"Wolverhampton City Council","http://opendatacommunities.org/id/metropolitan-district-council/wolverhampton","SHOE ZONE LTD 1165","46.85","Neighbourhood Management Central","5661","Clothing / Uniforms","29/02/2016"
"Wolverhampton City Council","http://opendatacommunities.org/id/metropolitan-district-council/wolverhampton","Virgintrains.co.uk","88.00","Graduate Trainees","4112","Public Transport","29/02/2016"
"Wolverhampton City Council","http://opendatacommunities.org/id/metropolitan-district-council/wolverhampton","SAINSBURYS 2040","32.72","Children's Village Nursery","5411","School Meals","29/02/2016"
"Wolverhampton City Council","http://opendatacommunities.org/id/metropolitan-district-council/wolverhampton","PIZZA HUT COMPTON","28.31","Youth Service - General","5814","Educ Trips, Holidays, Outings, Activity","29/02/2016"
"Wolverhampton City Council","http://opendatacommunities.org/id/metropolitan-district-council/wolverhampton","WOLVERHAMPTON CC","8.33","Cemeteries","7523","Car Allowances","29/02/2016"
"Wolverhampton City Council","http://opendatacommunities.org/id/metropolitan-district-council/wolverhampton","PAYPAL  WHITEHINGEL","19.75","Civic Hall Administration Overhead Acct","5945","Equipment - Purchase","29/02/2016"
"Wolverhampton City Council","http://opendatacommunities.org/id/metropolitan-district-council/wolverhampton","CUMMINGS BROTHERS LOCK","8.33","Wholesale Market Facilities Management","7399","R&M - Departmental planned (external)","29/02/2016"
"Wolverhampton City Council","http://opendatacommunities.org/id/metropolitan-district-council/wolverhampton","HALFORDS ON LINE","22.79","Public Health Management Support","5940","Equipment - Purchase","29/02/2016"
"Wolverhampton City Council","http://opendatacommunities.org/id/metropolitan-district-council/wolverhampton","PREMIER INN 44536670","132.50","Benefits","5812","Accommodation Costs","29/02/2016"
"Wolverhampton City Council","http://opendatacommunities.org/id/metropolitan-district-council/wolverhampton","ARGOS RETAIL GROUP","115.92","Ernest Bold Court","5310","Equipment - Purchase","29/02/2016"
"Wolverhampton City Council","http://opendatacommunities.org/id/metropolitan-district-council/wolverhampton","POST OFFICE COUNTER","23.40","Head of Service - CINCP","9402","Comms - Postage","29/02/2016"
"Wolverhampton City Council","http://opendatacommunities.org/id/metropolitan-district-council/wolverhampton","ASDA HOME SHOPPING","0.71","Ernest Bold Court","5411","Provisions (Not for resale)","29/02/2016"
"Wolverhampton City Council","http://opendatacommunities.org/id/metropolitan-district-council/wolverhampton","Virgintrains.co.uk","253.70","Private Sector Housing","4112","Public Transport","26/02/2016"
"Wolverhampton City Council","http://opendatacommunities.org/id/metropolitan-district-council/wolverhampton","TOOLSTATION LTD","37.31","Education Catering - General Overheads","5251","Catering","26/02/2016"
"Wolverhampton City Council","http://opendatacommunities.org/id/metropolitan-district-council/wolverhampton","FACEBOOK 3B8JG8SA92","592.42","Communications & Marketing - General","7311","Marketing \ Non-staff advertising","26/02/2016"
"Wolverhampton City Council","http://opendatacommunities.org/id/metropolitan-district-council/wolverhampton","Amazon EU","22.71","Parent / Partnership Service","5969","Equipment - Purchase","26/02/2016"
"Wolverhampton City Council","http://opendatacommunities.org/id/metropolitan-district-council/wolverhampton","CARESHOP","57.18","Community Enablement","5999","Equipment - Purchase","26/02/2016"
"Wolverhampton City Council","http://opendatacommunities.org/id/metropolitan-district-council/wolverhampton","Amazon UK Marketplace","2.97","Towers Outdoor Education Centre","5942","Equipment - Purchase","26/02/2016"
"Wolverhampton City Council","http://opendatacommunities.org/id/metropolitan-district-council/wolverhampton","TRAINLINE","184.11","Benefits","4112","Public Transport","26/02/2016"
"Wolverhampton City Council","http://opendatacommunities.org/id/metropolitan-district-council/wolverhampton","NO 5 CHAMBERS LTD","210.00","Legal Services","8111","Services - Professional Fees","26/02/2016"
"Wolverhampton City Council","http://opendatacommunities.org/id/metropolitan-district-council/wolverhampton","WWW.4LEARNINGSHOP.CO.U","50.00","Healthy Schools Team","8999","Materials","26/02/2016"
"Wolverhampton City Council","http://opendatacommunities.org/id/metropolitan-district-council/wolverhampton","SPECIALIST CRAFTS LTD","101.11","Education And Access","5970","Materials","26/02/2016"
"Wolverhampton City Council","http://opendatacommunities.org/id/metropolitan-district-council/wolverhampton","Amazon UK Marketplace","10.37","Towers Outdoor Education Centre","5942","Books","26/02/2016"
"Wolverhampton City Council","http://opendatacommunities.org/id/metropolitan-district-council/wolverhampton","POST OFFICE COUNTER","164.50","Children's Village Children Centre","9402","Comms - Postage","26/02/2016"
"Wolverhampton City Council","http://opendatacommunities.org/id/metropolitan-district-council/wolverhampton","POUNDLAND LTD 1463","11.00","Swan Bank","5310","Equipment - Purchase","26/02/2016"
"Wolverhampton City Council","http://opendatacommunities.org/id/metropolitan-district-council/wolverhampton","TESCO STORES 5403","5.55","Swan Bank","5411","Provisions (Not for resale)","26/02/2016"
"Wolverhampton City Council","http://opendatacommunities.org/id/metropolitan-district-council/wolverhampton","FONE SHACK UK LTD","5.82","Neighbourhood Management Central","4812","Comms - Mobile Telephones","26/02/2016"
"Wolverhampton City Council","http://opendatacommunities.org/id/metropolitan-district-council/wolverhampton","W M MORRISON PLC","28.35","Ernest Bold Court","5411","Provisions (Not for resale)","26/02/2016"
"Wolverhampton City Council","http://opendatacommunities.org/id/metropolitan-district-council/wolverhampton","VENUE CATERING PAR","83.12","City Marketing (Place)","5811","Catering","26/02/2016"
"Wolverhampton City Council","http://opendatacommunities.org/id/metropolitan-district-council/wolverhampton","HMCOURTS-SERVICE.G","10.00","Legal Services","9222","Services - Fees and Charges","26/02/2016"
"Wolverhampton City Council","http://opendatacommunities.org/id/metropolitan-district-council/wolverhampton","TRAINLINE","184.11","Benefits","4112","Public Transport","26/02/2016"
"Wolverhampton City Council","http://opendatacommunities.org/id/metropolitan-district-council/wolverhampton","COMBINED COURT","60.00","Legal Services","9222","Services - Fees and Charges","26/02/2016"
"Wolverhampton City Council","http://opendatacommunities.org/id/metropolitan-district-council/wolverhampton","LOYD WEDNESFIELD WOLVE","50.00","Duke Street Bungalows","6011","Financial Assistance In Exceptional Circ","26/02/2016"
"Wolverhampton City Council","http://opendatacommunities.org/id/metropolitan-district-council/wolverhampton","FACEBOOK 4B8JG8SA92","7.71","Communications & Marketing - General","7311","Marketing \ Non-staff advertising","26/02/2016"
"Wolverhampton City Council","http://opendatacommunities.org/id/metropolitan-district-council/wolverhampton","Amazon UK Marketplace","63.33","LAC Transitions Team","5942","Client Allowances","25/02/2016"
"Wolverhampton City Council","http://opendatacommunities.org/id/metropolitan-district-council/wolverhampton","ARGOS LTD","-24.98","Specialist Support Service - North","5310","Equipment - Purchase","25/02/2016"
"Wolverhampton City Council","http://opendatacommunities.org/id/metropolitan-district-council/wolverhampton","BRITANNIA","397.00","Graiseley - CIN SWU S17","7011","Services - Supplies & Services to users","25/02/2016"
"Wolverhampton City Council","http://opendatacommunities.org/id/metropolitan-district-council/wolverhampton","SAINSBURYS (2340)","103.66","Civic Centre Catering","5411","Provisions (Not for resale)","25/02/2016"
"Wolverhampton City Council","http://opendatacommunities.org/id/metropolitan-district-council/wolverhampton","SAINSBURYS 2040","-15.00","Duke Street Bungalows","5411","Provisions (Not for resale)","25/02/2016"
"Wolverhampton City Council","http://opendatacommunities.org/id/metropolitan-district-council/wolverhampton","FLOGAS UK LTD","154.87","One-off Rechargeable Events","5983","Heating Oil","25/02/2016"
"Wolverhampton City Council","http://opendatacommunities.org/id/metropolitan-district-council/wolverhampton","CUMMINGS BROTHERS LOCK","43.75","Caretakers Community Centre","7399","R&M - Departmental planned (external)","25/02/2016"
"Wolverhampton City Council","http://opendatacommunities.org/id/metropolitan-district-council/wolverhampton","Virgintrains.co.uk","123.00","Public Health Support Costs","4112","Public Transport","25/02/2016"
"Wolverhampton City Council","http://opendatacommunities.org/id/metropolitan-district-council/wolverhampton","Amazon EU","34.67","WV Active Business Support","5969","Stationery","25/02/2016"
"Wolverhampton City Council","http://opendatacommunities.org/id/metropolitan-district-council/wolverhampton","FIRSTAID4LESS.CO.UK","18.54","Headstart","5999","Equipment - Purchase","25/02/2016"
"Wolverhampton City Council","http://opendatacommunities.org/id/metropolitan-district-council/wolverhampton","Amazon UK Marketplace","23.04","LAC Transitions Team","5942","Client Allowances","25/02/2016"
"Wolverhampton City Council","http://opendatacommunities.org/id/metropolitan-district-council/wolverhampton","BRITANNIA","25.00","Valley Park - CIN SWU S17","7011","Accommodation Costs","25/02/2016"
"Wolverhampton City Council","http://opendatacommunities.org/id/metropolitan-district-council/wolverhampton","FIVEWAYS CONVENIENCE S","11.34","Headstart","5411","Provisions (Not for resale)","25/02/2016"
"Wolverhampton City Council","http://opendatacommunities.org/id/metropolitan-district-council/wolverhampton","Cross Country","88.70","Commissioning Disabilities","4112","Public Transport","25/02/2016"
"Wolverhampton City Council","http://opendatacommunities.org/id/metropolitan-district-council/wolverhampton","MAILCHIMP","36.06","City Direct","7399","Equipment - Purchase","25/02/2016"
"Wolverhampton City Council","http://opendatacommunities.org/id/metropolitan-district-council/wolverhampton","TRAINLINE","168.81","Enterprise Programmes","4112","Public Transport","25/02/2016"
"Wolverhampton City Council","http://opendatacommunities.org/id/metropolitan-district-council/wolverhampton","Cross Country","129.20","Commissioning Disabilities","4112","Public Transport","25/02/2016"
"Wolverhampton City Council","http://opendatacommunities.org/id/metropolitan-district-council/wolverhampton","POST OFFICE COUNTER","407.45","Looked After Team 1","9402","Comms - Postage","25/02/2016"
"Wolverhampton City Council","http://opendatacommunities.org/id/metropolitan-district-council/wolverhampton","Amazon EU","57.99","Mental Health Assessment & Care Mgmt","5969","Equipment - Purchase","25/02/2016"
"Wolverhampton City Council","http://opendatacommunities.org/id/metropolitan-district-council/wolverhampton","BRITANNIA","280.42","Valley Park - CIN SWU S17","7011","Accommodation Costs","25/02/2016"
"Wolverhampton City Council","http://opendatacommunities.org/id/metropolitan-district-council/wolverhampton","TESCO STORES 6727","6.90","Restorative Justice","5411","Provisions (Not for resale)","25/02/2016"
"Wolverhampton City Council","http://opendatacommunities.org/id/metropolitan-district-council/wolverhampton","WRISTBANDSCOUK","82.80","Headstart","5699","Equipment - Purchase","25/02/2016"
"Wolverhampton City Council","http://opendatacommunities.org/id/metropolitan-district-council/wolverhampton","ITUNES.COM/BILL","6.66","Learning Technologies","5735","Computing - Purchase of Software","25/02/2016"
"Wolverhampton City Council","http://opendatacommunities.org/id/metropolitan-district-council/wolverhampton","BACK TO BACK","47.10","24+ Advanced Learning Loan","8398","Services - Supplies & Services to users","25/02/2016"
"Wolverhampton City Council","http://opendatacommunities.org/id/metropolitan-district-council/wolverhampton","Amazon EU","23.06","Parent / Partnership Service","5969","Equipment - Purchase","25/02/2016"
"Wolverhampton City Council","http://opendatacommunities.org/id/metropolitan-district-council/wolverhampton","ARGOS RETAIL GROUP","63.94","MAST 5 - Valley Park","5310","Furniture","25/02/2016"
"Wolverhampton City Council","http://opendatacommunities.org/id/metropolitan-district-council/wolverhampton","BRITANNIA","110.00","Valley Park - CIN SWU S17","7011","Accommodation Costs","25/02/2016"
"Wolverhampton City Council","http://opendatacommunities.org/id/metropolitan-district-council/wolverhampton","AO RETAIL LIMITED","347.47","Creative Studies Delivery Area","5722","Equipment - Purchase","25/02/2016"
"Wolverhampton City Council","http://opendatacommunities.org/id/metropolitan-district-council/wolverhampton","ARGOS DIRECT","-8.95","Fostering Team & Allowances","5310","Equipment - Purchase","25/02/2016"
"Wolverhampton City Council","http://opendatacommunities.org/id/metropolitan-district-council/wolverhampton","ARGOS RETAIL GROUP","29.16","Berries - CIN SWU S17","5310","Equipment - Purchase","25/02/2016"
"Wolverhampton City Council","http://opendatacommunities.org/id/metropolitan-district-council/wolverhampton","TESCO STORE 3414","20.00","School Crossing Patrol","5411","Comms - Mobile Telephones","25/02/2016"
"Wolverhampton City Council","http://opendatacommunities.org/id/metropolitan-district-council/wolverhampton","Amazon UK Marketplace","15.18","Towers Outdoor Education Centre","5942","Books","25/02/2016"
"Wolverhampton City Council","http://opendatacommunities.org/id/metropolitan-district-council/wolverhampton","CUMMINGS BROTHERS LOCK","6.25","Wholesale Market Facilities Management","7399","R&M - Departmental planned (external)","25/02/2016"
"Wolverhampton City Council","http://opendatacommunities.org/id/metropolitan-district-council/wolverhampton","THE POST OFFICE","58.75","Looked After Team 1","9402","Services - Fees and Charges","25/02/2016"
"Wolverhampton City Council","http://opendatacommunities.org/id/metropolitan-district-council/wolverhampton","Amazon EU","45.00","Street Cleansing Overheads","5969","Equipment - Purchase","25/02/2016"
"Wolverhampton City Council","http://opendatacommunities.org/id/metropolitan-district-council/wolverhampton","THE POST OFFICE","176.25","Looked After Team 1","9402","Services - Fees and Charges","25/02/2016"
"Wolverhampton City Council","http://opendatacommunities.org/id/metropolitan-district-council/wolverhampton","TFM FARM & COUNTRY SUP","13.05","Northicote Farm","5399","Materials","25/02/2016"
"Wolverhampton City Council","http://opendatacommunities.org/id/metropolitan-district-council/wolverhampton","ROYAL MAIL  0845606040","6.39","Revenues","9402","Comms - Postage","25/02/2016"
"Wolverhampton City Council","http://opendatacommunities.org/id/metropolitan-district-council/wolverhampton","WM MORRISONS","28.14","Nelson Mandela House","5411","Provisions (Not for resale)","25/02/2016"
"Wolverhampton City Council","http://opendatacommunities.org/id/metropolitan-district-council/wolverhampton","Amazon UK Marketplace","24.16","Towers Outdoor Education Centre","5942","Equipment - Purchase","25/02/2016"
"Wolverhampton City Council","http://opendatacommunities.org/id/metropolitan-district-council/wolverhampton","WWW.MAPLIN.CO.UK","16.66","Mental Health Assessment & Care Mgmt","5732","Equipment - Purchase","25/02/2016"
"Wolverhampton City Council","http://opendatacommunities.org/id/metropolitan-district-council/wolverhampton","ASDA SUPERSTORE","4.94","Civic Centre Catering","5411","Provisions (Not for resale)","25/02/2016"
"Wolverhampton City Council","http://opendatacommunities.org/id/metropolitan-district-council/wolverhampton","TRAINLINE","101.39","Avenues - CIN SWU S17","4112","Public Transport","25/02/2016"
"Wolverhampton City Council","http://opendatacommunities.org/id/metropolitan-district-council/wolverhampton","G & M HALE LTD","96.30","Creative Studies Delivery Area","5992","Materials for resale","24/02/2016"
"Wolverhampton City Council","http://opendatacommunities.org/id/metropolitan-district-council/wolverhampton","IKEA ONLINE","325.00","LAC Transitions Team","5719","Client Allowances","24/02/2016"
"Wolverhampton City Council","http://opendatacommunities.org/id/metropolitan-district-council/wolverhampton","Cross Country CC","115.10","HRA General","4112","Public Transport","24/02/2016"
"Wolverhampton City Council","http://opendatacommunities.org/id/metropolitan-district-council/wolverhampton","SUPERDRUG STORES PLC","64.44","Towers Outdoor Education Centre","5912","Equipment - Purchase","24/02/2016"
"Wolverhampton City Council","http://opendatacommunities.org/id/metropolitan-district-council/wolverhampton","VENUE CATERING PAR","155.50","Delivery & OCE Development","5811","Catering","24/02/2016"
"Wolverhampton City Council","http://opendatacommunities.org/id/metropolitan-district-council/wolverhampton","Amazon UK Marketplace","9.79","Parent / Partnership Service","5942","Catering","24/02/2016"
"Wolverhampton City Council","http://opendatacommunities.org/id/metropolitan-district-council/wolverhampton","Virgintrains.co.uk","94.05","Members Expenses","4112","Public Transport","24/02/2016"
"Wolverhampton City Council","http://opendatacommunities.org/id/metropolitan-district-council/wolverhampton","G & M HALE (SUNDRIES)","23.22","Discretionary Fund","5992","Materials","24/02/2016"
"Wolverhampton City Council","http://opendatacommunities.org/id/metropolitan-district-council/wolverhampton","Amazon UK Marketplace","858.00","Technical Support","5942","Computing - Purchase of Hardware","24/02/2016"
"Wolverhampton City Council","http://opendatacommunities.org/id/metropolitan-district-council/wolverhampton","WWW.MAPLIN.CO.UK","40.92","DCMS Wolfson - Contemp Gallery Refurb","5732","Equipment - Purchase","24/02/2016"
"Wolverhampton City Council","http://opendatacommunities.org/id/metropolitan-district-council/wolverhampton","TRAINLINE","36.90","Mental Health Assessment & Care Mgmt","4112","Public Transport","24/02/2016"
"Wolverhampton City Council","http://opendatacommunities.org/id/metropolitan-district-council/wolverhampton","CENTRO HOUSE","1266.44","Travel Scratch Cards & Rail Warrants","4112","Public Transport","24/02/2016"
"Wolverhampton City Council","http://opendatacommunities.org/id/metropolitan-district-council/wolverhampton","TIMPSON LTD","25.00","The Maltings","7251","Fixtures and Fittings - R&M","24/02/2016"
"Wolverhampton City Council","http://opendatacommunities.org/id/metropolitan-district-council/wolverhampton","TRAVELODGE","335.90","Customer Services","3615","Services - Supplies & Services to users","24/02/2016"
"Wolverhampton City Council","http://opendatacommunities.org/id/metropolitan-district-council/wolverhampton","POST OFFICE COUNTER","2.33","Cemeteries","9402","Comms - Postage","24/02/2016"
"Wolverhampton City Council","http://opendatacommunities.org/id/metropolitan-district-council/wolverhampton","Virgintrains.co.uk","190.40","Fostering Team & Allowances","4112","Public Transport","24/02/2016"
"Wolverhampton City Council","http://opendatacommunities.org/id/metropolitan-district-council/wolverhampton","PREMIER INN 44536720","80.49","Fostering Team & Allowances","5812","Accommodation Costs","24/02/2016"
"Wolverhampton City Council","http://opendatacommunities.org/id/metropolitan-district-council/wolverhampton","ASDA HOME SHOPPING","72.76","Ernest Bold Court","5411","Provisions (Not for resale)","24/02/2016"
"Wolverhampton City Council","http://opendatacommunities.org/id/metropolitan-district-council/wolverhampton","CENTURY ELECTRICAL WHO","77.80","Public Conveniences","5065","R&M - Departmental planned (external)","24/02/2016"
"Wolverhampton City Council","http://opendatacommunities.org/id/metropolitan-district-council/wolverhampton","CENTRO HOUSE","1000.00","Banking","4112","Public Transport","24/02/2016"
"Wolverhampton City Council","http://opendatacommunities.org/id/metropolitan-district-council/wolverhampton","E01510300000000","50.00","Emergency Duty Team","6011","Financial Assistance In Exceptional Circ","24/02/2016"
"Wolverhampton City Council","http://opendatacommunities.org/id/metropolitan-district-council/wolverhampton","Amazon UK Marketplace","34.73","Parent / Partnership Service","5942","Events","24/02/2016"
"Wolverhampton City Council","http://opendatacommunities.org/id/metropolitan-district-council/wolverhampton","ASDA HOME SHOPPING","-0.28","Ernest Bold Court","5411","Provisions (Not for resale)","24/02/2016"
"Wolverhampton City Council","http://opendatacommunities.org/id/metropolitan-district-council/wolverhampton","Amazon UK Marketplace","56.89","Landscape","5942","Computing - Purchase of Software","24/02/2016"
"Wolverhampton City Council","http://opendatacommunities.org/id/metropolitan-district-council/wolverhampton","Amazon EU","34.05","Parent / Partnership Service","5969","Equipment - Purchase","24/02/2016"
"Wolverhampton City Council","http://opendatacommunities.org/id/metropolitan-district-council/wolverhampton","WM MORRISON 024","4.79","Bilston Museum","5411","Materials for resale","24/02/2016"
"Wolverhampton City Council","http://opendatacommunities.org/id/metropolitan-district-council/wolverhampton","ARRIVA TRAINS WALE","16.90","Art Gallery","4112","Public Transport","24/02/2016"
"Wolverhampton City Council","http://opendatacommunities.org/id/metropolitan-district-council/wolverhampton","Virgintrains.co.uk","118.15","Strategic Director People","4112","Public Transport","24/02/2016"
"Wolverhampton City Council","http://opendatacommunities.org/id/metropolitan-district-council/wolverhampton","G & M HALE (SUNDRIES)","13.34","Creative Studies Delivery Area","5992","Materials for resale","24/02/2016"
"Wolverhampton City Council","http://opendatacommunities.org/id/metropolitan-district-council/wolverhampton","Amazon UK Marketplace","1.82","LAC Transitions Team","5942","Client Allowances","24/02/2016"
"Wolverhampton City Council","http://opendatacommunities.org/id/metropolitan-district-council/wolverhampton","CUMMINGS BROTHERS LOCK","42.00","Head of Service - LAC","7399","Equipment - Purchase","24/02/2016"
"Wolverhampton City Council","http://opendatacommunities.org/id/metropolitan-district-council/wolverhampton","SAINSBURYS (2340)","-6.00","Discretionary Fund","5411","Provisions (Not for resale)","24/02/2016"
"Wolverhampton City Council","http://opendatacommunities.org/id/metropolitan-district-council/wolverhampton","Virgintrains.co.uk","24.40","Looked After Team 1","4112","Public Transport","24/02/2016"
"Wolverhampton City Council","http://opendatacommunities.org/id/metropolitan-district-council/wolverhampton","TESCO STORES 5194","62.50","Towers Outdoor Education Centre","5411","Provisions (Not for resale)","24/02/2016"
"Wolverhampton City Council","http://opendatacommunities.org/id/metropolitan-district-council/wolverhampton","THE POST OFFICE","235.00","Looked After Team 1","9402","Services - Fees and Charges","24/02/2016"
"Wolverhampton City Council","http://opendatacommunities.org/id/metropolitan-district-council/wolverhampton","G & M HALE LTD","68.48","Discretionary Fund","5992","Materials","24/02/2016"
"Wolverhampton City Council","http://opendatacommunities.org/id/metropolitan-district-council/wolverhampton","Virgintrains.co.uk","5.40","Children & Young People Support Costs","4112","Public Transport","24/02/2016"
"Wolverhampton City Council","http://opendatacommunities.org/id/metropolitan-district-council/wolverhampton","ALLPAY MOTO (CALLPAY/I","212.30","Valley Park - CIN SWU S17","8398","Rent","24/02/2016"
"Wolverhampton City Council","http://opendatacommunities.org/id/metropolitan-district-council/wolverhampton","TESCO STORES 6727","6.53","Restorative Justice","5411","Provisions (Not for resale)","24/02/2016"
"Wolverhampton City Council","http://opendatacommunities.org/id/metropolitan-district-council/wolverhampton","VISTAPR VISTAPRINT.UK","63.70","Civic Hall Administration Overhead Acct","2741","Publications","24/02/2016"
"Wolverhampton City Council","http://opendatacommunities.org/id/metropolitan-district-council/wolverhampton","TVLICENSING.CO.UK","145.50","LAC Transitions Team","7392","Client Allowances","24/02/2016"
"Wolverhampton City Council","http://opendatacommunities.org/id/metropolitan-district-council/wolverhampton","TRAINLINE","62.42","SEN Special Education Admin","4112","Public Transport","24/02/2016"
"Wolverhampton City Council","http://opendatacommunities.org/id/metropolitan-district-council/wolverhampton","TRAVELODGE","108.25","Mental Health Assessment & Care Mgmt","3615","Services - Supplies & Services to users","24/02/2016"
"Wolverhampton City Council","http://opendatacommunities.org/id/metropolitan-district-council/wolverhampton","Cross Country","28.90","Mental Health Assessment & Care Mgmt","4112","Public Transport","24/02/2016"
"Wolverhampton City Council","http://opendatacommunities.org/id/metropolitan-district-council/wolverhampton","TFM FARM & COUNTRY SUP","64.15","Northicote Farm","5399","Equipment - Purchase","24/02/2016"
"Wolverhampton City Council","http://opendatacommunities.org/id/metropolitan-district-council/wolverhampton","THE HELPING HAND CO","267.75","Street Cleansing Overheads","8050","Equipment - Purchase","23/02/2016"
"Wolverhampton City Council","http://opendatacommunities.org/id/metropolitan-district-council/wolverhampton","SCREWFIX DIRECT","21.82","Caretakers Community Centre","5211","R&M - Departmental planned (external)","23/02/2016"
"Wolverhampton City Council","http://opendatacommunities.org/id/metropolitan-district-council/wolverhampton","YOUNGS SHOE REPAIRS LI","20.65","Wolverhampton Indoor and Open Market","7251","Fixtures and Fittings - R&M","23/02/2016"
"Wolverhampton City Council","http://opendatacommunities.org/id/metropolitan-district-council/wolverhampton","ARGOS LTD","39.57","Duke Street Bungalows","5310","Equipment - Purchase","23/02/2016"
"Wolverhampton City Council","http://opendatacommunities.org/id/metropolitan-district-council/wolverhampton","ARGOS RETAIL GROUP","183.32","LAC Transitions Team","5310","Client Allowances","23/02/2016"
"Wolverhampton City Council","http://opendatacommunities.org/id/metropolitan-district-council/wolverhampton","SAINSBURYS (2340)","61.90","Discretionary Fund","5411","Provisions (Not for resale)","23/02/2016"
"Wolverhampton City Council","http://opendatacommunities.org/id/metropolitan-district-council/wolverhampton","ONE STOP 1009","6.32","MAST 1 - Deansfield","5411","Provisions (Not for resale)","23/02/2016"
"Wolverhampton City Council","http://opendatacommunities.org/id/metropolitan-district-council/wolverhampton","Virgintrains.co.uk","129.00","Looked After Team 1","4112","Public Transport","23/02/2016"
"Wolverhampton City Council","http://opendatacommunities.org/id/metropolitan-district-council/wolverhampton","LIDL UK","4.61","Ernest Bold Court","5411","Provisions (Not for resale)","23/02/2016"
"Wolverhampton City Council","http://opendatacommunities.org/id/metropolitan-district-council/wolverhampton","WWW.MANCHESTER.GOV.UK","11.00","Looked After Team 1","9399","Services - Fees and Charges","23/02/2016"
"Wolverhampton City Council","http://opendatacommunities.org/id/metropolitan-district-council/wolverhampton","PIXELS (UK) LTD","351.00","DCMS Wolfson - Contemp Gallery Refurb","5732","Equipment - Purchase","23/02/2016"
"Wolverhampton City Council","http://opendatacommunities.org/id/metropolitan-district-council/wolverhampton","KAY PICTURES LIMITED","16.00","SEN Sensory Inclusion","8043","Equipment - Purchase","23/02/2016"
"Wolverhampton City Council","http://opendatacommunities.org/id/metropolitan-district-council/wolverhampton","Virgintrains.co.uk","146.10","Looked After Team 1","4112","Public Transport","23/02/2016"
"Wolverhampton City Council","http://opendatacommunities.org/id/metropolitan-district-council/wolverhampton","FTPE WEBTIS 1","15.00","LAC Transitions Team","4112","Public Transport","23/02/2016"
"Wolverhampton City Council","http://opendatacommunities.org/id/metropolitan-district-council/wolverhampton","HOME BARGAINS","3.97","LAC Transitions Team","5251","Client Allowances","23/02/2016"
"Wolverhampton City Council","http://opendatacommunities.org/id/metropolitan-district-council/wolverhampton","TRAINLINE","109.85","Adoption and Residence Team & Allowances","4112","Public Transport","23/02/2016"
"Wolverhampton City Council","http://opendatacommunities.org/id/metropolitan-district-council/wolverhampton","HUGHES","416.67","LAC Transitions Team","5732","Accommodation Costs","23/02/2016"
"Wolverhampton City Council","http://opendatacommunities.org/id/metropolitan-district-council/wolverhampton","HUGHES","416.67","LAC Transitions Team","5732","Client Allowances","23/02/2016"
"Wolverhampton City Council","http://opendatacommunities.org/id/metropolitan-district-council/wolverhampton","TRAINLINE","117.81","Civic Halls Non Direct Management A/C","4112","Public Transport","23/02/2016"
"Wolverhampton City Council","http://opendatacommunities.org/id/metropolitan-district-council/wolverhampton","B&M RETAIL LTD","52.56","LAC Transitions Team","5310","Client Allowances","23/02/2016"
"Wolverhampton City Council","http://opendatacommunities.org/id/metropolitan-district-council/wolverhampton","TESCO STORES 3414","2.58","Mayoral Expenses","5411","Hospitality","23/02/2016"
"Wolverhampton City Council","http://opendatacommunities.org/id/metropolitan-district-council/wolverhampton","FINTON LIMITED TA COST","13.33","LAC Transitions Team","5411","Client Allowances","23/02/2016"
"Wolverhampton City Council","http://opendatacommunities.org/id/metropolitan-district-council/wolverhampton","POST OFFICE COUNTER","7.56","MAST - Central Team","9402","Comms - Postage","23/02/2016"
"Wolverhampton City Council","http://opendatacommunities.org/id/metropolitan-district-council/wolverhampton","TRAINLINE","115.36","Safeguarding Admin Resource","4112","Public Transport","23/02/2016"
"Wolverhampton City Council","http://opendatacommunities.org/id/metropolitan-district-council/wolverhampton","REDWINGS LODGE","166.46","Valley Park - CIN SWU S17","7011","Accommodation Costs","23/02/2016"
"Wolverhampton City Council","http://opendatacommunities.org/id/metropolitan-district-council/wolverhampton","ARGOS LTD","49.98","LAC Transitions Team","5310","Client Allowances","23/02/2016"
"Wolverhampton City Council","http://opendatacommunities.org/id/metropolitan-district-council/wolverhampton","THE CONSORTIUM/WMS","87.79","Street Cleansing Overheads","5968","Equipment - Purchase","23/02/2016"
"Wolverhampton City Council","http://opendatacommunities.org/id/metropolitan-district-council/wolverhampton","SAFETYSUPPL","17.71","Central Baths","5311","Equipment - Purchase","23/02/2016"
"Wolverhampton City Council","http://opendatacommunities.org/id/metropolitan-district-council/wolverhampton","Amazon UK Marketplace","73.41","Public Health Management Support","5942","Computing - Purchase of Hardware","23/02/2016"
"Wolverhampton City Council","http://opendatacommunities.org/id/metropolitan-district-council/wolverhampton","TRAINLINE","16.07","Childrens Centres & Early Years","4112","Public Transport","23/02/2016"
"Wolverhampton City Council","http://opendatacommunities.org/id/metropolitan-district-council/wolverhampton","ALDI","107.91","Upper Pendeford Farm Childrens Home","5411","Provisions (Not for resale)","23/02/2016"
"Wolverhampton City Council","http://opendatacommunities.org/id/metropolitan-district-council/wolverhampton","WOLVERHAMPTON CC","10.00","Headstart","7523","Car Allowances","23/02/2016"
"Wolverhampton City Council","http://opendatacommunities.org/id/metropolitan-district-council/wolverhampton","ARGOS RETAIL GROUP","204.12","LAC Transitions Team","5310","Client Allowances","23/02/2016"
"Wolverhampton City Council","http://opendatacommunities.org/id/metropolitan-district-council/wolverhampton","KENT & SUSSEX VEND","239.78","Specialist Support Service - North","5499","Provisions (Not for resale)","23/02/2016"
"Wolverhampton City Council","http://opendatacommunities.org/id/metropolitan-district-council/wolverhampton","ALDI","58.60","Children's Village Nursery","5411","School Meals","23/02/2016"
"Wolverhampton City Council","http://opendatacommunities.org/id/metropolitan-district-council/wolverhampton","CENTRAL TAXIS LTD","7.80","Headstart","4121","Client Transport","23/02/2016"
"Wolverhampton City Council","http://opendatacommunities.org/id/metropolitan-district-council/wolverhampton","WOLVERHAMPTON CARP","32.50","LAC Transitions Team","5713","Equipment - Purchase","23/02/2016"
"Wolverhampton City Council","http://opendatacommunities.org/id/metropolitan-district-council/wolverhampton","BRITANNIA","36.67","Emergency Duty Team","7011","Services - Supplies & Services to users","23/02/2016"
"Wolverhampton City Council","http://opendatacommunities.org/id/metropolitan-district-council/wolverhampton","TRAINLINE","64.36","Safeguarding Admin Resource","4112","Public Transport","23/02/2016"
"Wolverhampton City Council","http://opendatacommunities.org/id/metropolitan-district-council/wolverhampton","WWW.POWERTOOLDIREC","42.93","Parks - East Area Management","5722","Equipment - Purchase","23/02/2016"
"Wolverhampton City Council","http://opendatacommunities.org/id/metropolitan-district-council/wolverhampton","ARGOS RETAIL GROUP","74.12","Bilston 2 - CIN SWU S17","5310","Furniture","22/02/2016"
"Wolverhampton City Council","http://opendatacommunities.org/id/metropolitan-district-council/wolverhampton","TESCO DELIVERY SAVER2","2.50","Towers Outdoor Education Centre","5968","Provisions (Not for resale)","22/02/2016"
"Wolverhampton City Council","http://opendatacommunities.org/id/metropolitan-district-council/wolverhampton","THE YORK HOTEL","175.00","Emergency Duty Team","7011","Services - Supplies & Services to users","22/02/2016"
"Wolverhampton City Council","http://opendatacommunities.org/id/metropolitan-district-council/wolverhampton","BILSTON CARPETS","260.00","Eastfield 2 - CIN SWU S17","5713","Equipment - Purchase","22/02/2016"
"Wolverhampton City Council","http://opendatacommunities.org/id/metropolitan-district-council/wolverhampton","REDWINGS LODGE","2.75","Valley Park - CIN SWU S17","7011","Provisions (Not for resale)","22/02/2016"
"Wolverhampton City Council","http://opendatacommunities.org/id/metropolitan-district-council/wolverhampton","REDWINGS LODGE","8.75","Valley Park - CIN SWU S17","7011","Provisions (Not for resale)","22/02/2016"
"Wolverhampton City Council","http://opendatacommunities.org/id/metropolitan-district-council/wolverhampton","COMBINED COURT","280.00","Legal Services","9222","Services - Fees and Charges","22/02/2016"
"Wolverhampton City Council","http://opendatacommunities.org/id/metropolitan-district-council/wolverhampton","Amazon UK Marketplace","241.50","College of Further Education","5942","Computing - Consumables","22/02/2016"
"Wolverhampton City Council","http://opendatacommunities.org/id/metropolitan-district-council/wolverhampton","B & Q","80.80","Bert Williams Leisure Centre","5211","Equipment - Purchase","22/02/2016"
"Wolverhampton City Council","http://opendatacommunities.org/id/metropolitan-district-council/wolverhampton","REDWINGS LODGE","2.08","Valley Park - CIN SWU S17","7011","Provisions (Not for resale)","22/02/2016"
"Wolverhampton City Council","http://opendatacommunities.org/id/metropolitan-district-council/wolverhampton","REDWINGS LODGE","1.67","Valley Park - CIN SWU S17","7011","Provisions (Not for resale)","22/02/2016"
"Wolverhampton City Council","http://opendatacommunities.org/id/metropolitan-district-council/wolverhampton","UNTOUCHABLES","40.00","Cemeteries","5231","Materials","22/02/2016"
"Wolverhampton City Council","http://opendatacommunities.org/id/metropolitan-district-council/wolverhampton","IKEA","12.50","Bilston Museum","5719","Equipment - Purchase","22/02/2016"
"Wolverhampton City Council","http://opendatacommunities.org/id/metropolitan-district-council/wolverhampton","REDWINGS LODGE","1.50","Valley Park - CIN SWU S17","7011","Provisions (Not for resale)","22/02/2016"
"Wolverhampton City Council","http://opendatacommunities.org/id/metropolitan-district-council/wolverhampton","REDWINGS LODGE","1.33","Valley Park - CIN SWU S17","7011","Provisions (Not for resale)","22/02/2016"
"Wolverhampton City Council","http://opendatacommunities.org/id/metropolitan-district-council/wolverhampton","REDWINGS LODGE","23.08","Valley Park - CIN SWU S17","7011","Provisions (Not for resale)","22/02/2016"
"Wolverhampton City Council","http://opendatacommunities.org/id/metropolitan-district-council/wolverhampton","ARGOS RETAIL GROUP","39.99","Adoption and Residence Team & Allowances","5310","Equipment - Purchase","22/02/2016"
"Wolverhampton City Council","http://opendatacommunities.org/id/metropolitan-district-council/wolverhampton","ASDA HOME SHOPPING","73.69","Ernest Bold Court","5411","Provisions (Not for resale)","22/02/2016"
"Wolverhampton City Council","http://opendatacommunities.org/id/metropolitan-district-council/wolverhampton","PAYPAL  BLACKCOUNTR","14.49","Archives","8641","Books","22/02/2016"
"Wolverhampton City Council","http://opendatacommunities.org/id/metropolitan-district-council/wolverhampton","Amazon EU","58.03","Landscape","5969","Computing - Purchase of Software","22/02/2016"
"Wolverhampton City Council","http://opendatacommunities.org/id/metropolitan-district-council/wolverhampton","AMZ UK Digital Dwnload","457.33","Landscape","5735","Computing - Purchase of Software","22/02/2016"
"Wolverhampton City Council","http://opendatacommunities.org/id/metropolitan-district-council/wolverhampton","AMZ UK Digital Dwnload","457.33","Landscape","5735","Computing - Purchase of Software","22/02/2016"
"Wolverhampton City Council","http://opendatacommunities.org/id/metropolitan-district-council/wolverhampton","REDWINGS LODGE","10.54","Valley Park - CIN SWU S17","7011","Provisions (Not for resale)","22/02/2016"
"Wolverhampton City Council","http://opendatacommunities.org/id/metropolitan-district-council/wolverhampton","FACEBOOK YADSH8WA92","4.52","Communications & Marketing - General","7311","Marketing \ Non-staff advertising","22/02/2016"
"Wolverhampton City Council","http://opendatacommunities.org/id/metropolitan-district-council/wolverhampton","REDWINGS LODGE","0.67","Valley Park - CIN SWU S17","7011","Provisions (Not for resale)","22/02/2016"
"Wolverhampton City Council","http://opendatacommunities.org/id/metropolitan-district-council/wolverhampton","CARVER/WOLVERHAMPTON/L","23.27","Northicote Farm","5211","Materials","22/02/2016"
"Wolverhampton City Council","http://opendatacommunities.org/id/metropolitan-district-council/wolverhampton","FACEBOOK WADSH8WA92","595.64","Communications & Marketing - General","7311","Marketing \ Non-staff advertising","22/02/2016"
"Wolverhampton City Council","http://opendatacommunities.org/id/metropolitan-district-council/wolverhampton","TRAINLINE","-240.00","Looked After Team 1","4112","Public Transport","22/02/2016"
"Wolverhampton City Council","http://opendatacommunities.org/id/metropolitan-district-council/wolverhampton","REDWINGS LODGE","1.33","Valley Park - CIN SWU S17","7011","Provisions (Not for resale)","22/02/2016"
"Wolverhampton City Council","http://opendatacommunities.org/id/metropolitan-district-council/wolverhampton","NELC INTERNET","10.24","Dove - CIN SWU S17","9399","Services - Fees and Charges","22/02/2016"
"Wolverhampton City Council","http://opendatacommunities.org/id/metropolitan-district-council/wolverhampton","CO-OP GROUP PETROL","4.28","Bilston Museum","5541","Petrol","22/02/2016"
"Wolverhampton City Council","http://opendatacommunities.org/id/metropolitan-district-council/wolverhampton","CT WOLVERHAMPTON","87.50","Warstones - CIN SWU S17","8398","Equipment - Purchase","22/02/2016"
"Wolverhampton City Council","http://opendatacommunities.org/id/metropolitan-district-council/wolverhampton","REDWINGS LODGE","12.21","Valley Park - CIN SWU S17","7011","Provisions (Not for resale)","22/02/2016"
"Wolverhampton City Council","http://opendatacommunities.org/id/metropolitan-district-council/wolverhampton","REDWINGS LODGE","8.71","Valley Park - CIN SWU S17","7011","Provisions (Not for resale)","22/02/2016"
"Wolverhampton City Council","http://opendatacommunities.org/id/metropolitan-district-council/wolverhampton","ARGOS LTD","94.99","LAC Transitions Team","5310","Equipment - Purchase","22/02/2016"
"Wolverhampton City Council","http://opendatacommunities.org/id/metropolitan-district-council/wolverhampton","REDWINGS LODGE","95.71","Valley Park - CIN SWU S17","7011","Accommodation Costs","22/02/2016"
"Wolverhampton City Council","http://opendatacommunities.org/id/metropolitan-district-council/wolverhampton","REDWINGS LODGE","0.83","Valley Park - CIN SWU S17","7011","Provisions (Not for resale)","22/02/2016"
"Wolverhampton City Council","http://opendatacommunities.org/id/metropolitan-district-council/wolverhampton","ASDA HOME SHOPPING","0.13","Ernest Bold Court","5411","Provisions (Not for resale)","22/02/2016"
"Wolverhampton City Council","http://opendatacommunities.org/id/metropolitan-district-council/wolverhampton","REDWINGS LODGE","8.87","Valley Park - CIN SWU S17","7011","Provisions (Not for resale)","22/02/2016"
"Wolverhampton City Council","http://opendatacommunities.org/id/metropolitan-district-council/wolverhampton","WM MORRISON 024","2.84","Bert Williams Leisure Centre","5411","Stationery","22/02/2016"
"Wolverhampton City Council","http://opendatacommunities.org/id/metropolitan-district-council/wolverhampton","SAINSBURYS 2040","9.30","Upper Pendeford Farm Childrens Home","5411","Provisions (Not for resale)","22/02/2016"
"Wolverhampton City Council","http://opendatacommunities.org/id/metropolitan-district-council/wolverhampton","MIDLAND DOMESTIC","140.00","Warstones - CIN SWU S17","5722","Client Allowances","22/02/2016"
"Wolverhampton City Council","http://opendatacommunities.org/id/metropolitan-district-council/wolverhampton","REDWINGS LODGE","11.29","Valley Park - CIN SWU S17","7011","Provisions (Not for resale)","22/02/2016"
"Wolverhampton City Council","http://opendatacommunities.org/id/metropolitan-district-council/wolverhampton","OFFICE DEPOT","-875.97","Technical Support","5111","Furniture","19/02/2016"
"Wolverhampton City Council","http://opendatacommunities.org/id/metropolitan-district-council/wolverhampton","THE ABBEY HOTEL","48.00","Looked After Team 1","7011","Services - Supplies & Services to users","19/02/2016"
"Wolverhampton City Council","http://opendatacommunities.org/id/metropolitan-district-council/wolverhampton","Amazon UK Marketplace","299.70","Customer Services","5942","Books","19/02/2016"
"Wolverhampton City Council","http://opendatacommunities.org/id/metropolitan-district-council/wolverhampton","COOKSON PRECIOUS M","285.66","Creative Studies Delivery Area","5094","Equipment - Purchase","19/02/2016"
"Wolverhampton City Council","http://opendatacommunities.org/id/metropolitan-district-council/wolverhampton","POST OFFICE COUNTER","8.10","Legal Services","9402","Comms - Postage","19/02/2016"
"Wolverhampton City Council","http://opendatacommunities.org/id/metropolitan-district-council/wolverhampton","EXPRESS & STAR","200.00","Register Office","5994","Equipment - Purchase","19/02/2016"
"Wolverhampton City Council","http://opendatacommunities.org/id/metropolitan-district-council/wolverhampton","ASDA SUPERSTORE","107.47","LAC Transitions Team","5411","Client Allowances","19/02/2016"
"Wolverhampton City Council","http://opendatacommunities.org/id/metropolitan-district-council/wolverhampton","POST OFFICE COUNTER","252.00","Fostering and Adoption Admin Team","9402","Comms - Postage","19/02/2016"
"Wolverhampton City Council","http://opendatacommunities.org/id/metropolitan-district-council/wolverhampton","THE YORK HOTEL","113.20","Graiseley - CIN SWU S17","7011","Services - Supplies & Services to users","19/02/2016"
"Wolverhampton City Council","http://opendatacommunities.org/id/metropolitan-district-council/wolverhampton","ROYAL MAIL  0845606040","1.50","Revenues","9402","Comms - Postage","19/02/2016"
"Wolverhampton City Council","http://opendatacommunities.org/id/metropolitan-district-council/wolverhampton","TRAINLINE","391.37","Customer Services","4112","Public Transport","19/02/2016"
"Wolverhampton City Council","http://opendatacommunities.org/id/metropolitan-district-council/wolverhampton","REDWINGS LODGE","6.96","Valley Park - CIN SWU S17","7011","Provisions (Not for resale)","19/02/2016"
"Wolverhampton City Council","http://opendatacommunities.org/id/metropolitan-district-council/wolverhampton","CENTURY ELECTRICAL WHO","20.00","Caretakers Community Centre","5065","R&M - Departmental planned (external)","19/02/2016"
"Wolverhampton City Council","http://opendatacommunities.org/id/metropolitan-district-council/wolverhampton","ARGOS RETAIL GROUP","91.66","LAC Transitions Team","5310","Equipment - Purchase","19/02/2016"
"Wolverhampton City Council","http://opendatacommunities.org/id/metropolitan-district-council/wolverhampton","PREMIER INN","79.16","Workforce Development","3811","Accommodation Costs","19/02/2016"
"Wolverhampton City Council","http://opendatacommunities.org/id/metropolitan-district-council/wolverhampton","W M MORRISON PLC","23.27","Ernest Bold Court","5411","Provisions (Not for resale)","19/02/2016"
"Wolverhampton City Council","http://opendatacommunities.org/id/metropolitan-district-council/wolverhampton","SAINSBURYS SACAT (2340","1.00","Mayoral Expenses","5411","Hospitality","19/02/2016"
"Wolverhampton City Council","http://opendatacommunities.org/id/metropolitan-district-council/wolverhampton","CAR PARKING OFFICE","28.00","College of Further Education","7523","Parking Fees","19/02/2016"
"Wolverhampton City Council","http://opendatacommunities.org/id/metropolitan-district-council/wolverhampton","POST OFFICE COUNTER","6.00","Legal Services","9402","Comms - Postage","19/02/2016"
"Wolverhampton City Council","http://opendatacommunities.org/id/metropolitan-district-council/wolverhampton","Virgintrains.co.uk","86.50","Looked After Team 1","4112","Public Transport","19/02/2016"
"Wolverhampton City Council","http://opendatacommunities.org/id/metropolitan-district-council/wolverhampton","CARVER/WOLVERHAMPTON/L","15.94","Wholesale Market Facilities Management","5211","Cleaning Supplies and Materials","19/02/2016"
"Wolverhampton City Council","http://opendatacommunities.org/id/metropolitan-district-council/wolverhampton","Amazon UK Marketplace","137.00","School Improvement","5942","Books","19/02/2016"
"Wolverhampton City Council","http://opendatacommunities.org/id/metropolitan-district-council/wolverhampton","GEOGRAPHERS A-Z MAP CO","9.00","Benefits","5942","Books","19/02/2016"
"Wolverhampton City Council","http://opendatacommunities.org/id/metropolitan-district-council/wolverhampton","WISEPOPSCOM","35.35","City Direct","7372","Computing - Purchase of Software","19/02/2016"
"Wolverhampton City Council","http://opendatacommunities.org/id/metropolitan-district-council/wolverhampton","HOMEZONE","105.00","Bilston 2 - CIN SWU S17","5211","Furniture","19/02/2016"
"Wolverhampton City Council","http://opendatacommunities.org/id/metropolitan-district-council/wolverhampton","B & Q","33.33","Bert Williams Leisure Centre","5211","Equipment - Purchase","19/02/2016"
"Wolverhampton City Council","http://opendatacommunities.org/id/metropolitan-district-council/wolverhampton","CRAFTYARTS.CO.UK","27.48","Delivery & OCE Development","5970","Equipment - Purchase","19/02/2016"
"Wolverhampton City Council","http://opendatacommunities.org/id/metropolitan-district-council/wolverhampton","CARESHOP","152.90","Outreach Support","5999","Equipment - Purchase","19/02/2016"
"Wolverhampton City Council","http://opendatacommunities.org/id/metropolitan-district-council/wolverhampton","Virgintrains.co.uk","191.10","Environmental Health - Pub Prot - Gen","4112","Services - Fees and Charges","19/02/2016"
"Wolverhampton City Council","http://opendatacommunities.org/id/metropolitan-district-council/wolverhampton","TVLICENSING.CO.UK","121.25","LAC Transitions Team","7392","Services - Consultants","18/02/2016"
"Wolverhampton City Council","http://opendatacommunities.org/id/metropolitan-district-council/wolverhampton","WWW.MAPLIN.CO.UK","18.32","Central Baths","5732","Equipment - Purchase","18/02/2016"
"Wolverhampton City Council","http://opendatacommunities.org/id/metropolitan-district-council/wolverhampton","COMBINED COURT","50.00","Legal Services","9222","Services - Fees and Charges","18/02/2016"
"Wolverhampton City Council","http://opendatacommunities.org/id/metropolitan-district-council/wolverhampton","Amazon UK Marketplace","46.19","Environmental Health - Pub Prot - Gen","5942","Equipment - Purchase","18/02/2016"
"Wolverhampton City Council","http://opendatacommunities.org/id/metropolitan-district-council/wolverhampton","PAYPAL  MIDFRDFORUM","130.00","Audit Services","8641","Educ Trips, Holidays, Outings, Activity","18/02/2016"
"Wolverhampton City Council","http://opendatacommunities.org/id/metropolitan-district-council/wolverhampton","DUDLEY MET CNL ATP","15.69","Legal Services","7999","Educ Trips, Holidays, Outings, Activity","18/02/2016"
"Wolverhampton City Council","http://opendatacommunities.org/id/metropolitan-district-council/wolverhampton","AUTOTIME SOLUTIONS","230.00","Street Cleansing East","5943","R&M - Departmental response (external)","18/02/2016"
"Wolverhampton City Council","http://opendatacommunities.org/id/metropolitan-district-council/wolverhampton","FACEBOOK W3YJZ8A4U2","20.12","The Little Civic","7311","Marketing \ Non-staff advertising","18/02/2016"
"Wolverhampton City Council","http://opendatacommunities.org/id/metropolitan-district-council/wolverhampton","POST OFFICE COUNTER","378.00","Adoption and Residence Team & Allowances","9402","Comms - Postage","18/02/2016"
"Wolverhampton City Council","http://opendatacommunities.org/id/metropolitan-district-council/wolverhampton","Amazon EU","23.97","Global Budgets","5969","Books","18/02/2016"
"Wolverhampton City Council","http://opendatacommunities.org/id/metropolitan-district-council/wolverhampton","Cross Country","379.20","School Improvement","4112","Public Transport","18/02/2016"
"Wolverhampton City Council","http://opendatacommunities.org/id/metropolitan-district-council/wolverhampton","TRAINLINE","65.84","DCMS Wolfson - Contemp Gallery Refurb","4112","Public Transport","18/02/2016"
"Wolverhampton City Council","http://opendatacommunities.org/id/metropolitan-district-council/wolverhampton","UPS LTD SHIPPING FEES","30.80","Art Gallery","4215","Comms - Postage","18/02/2016"
"Wolverhampton City Council","http://opendatacommunities.org/id/metropolitan-district-council/wolverhampton","WWW.TCARDSDIRECT.COM","12.05","LAC Transitions Team","5111","Stationery","18/02/2016"
"Wolverhampton City Council","http://opendatacommunities.org/id/metropolitan-district-council/wolverhampton","Amazon EU","92.39","Civic Hall Administration Overhead Acct","5969","Equipment - Purchase","18/02/2016"
"Wolverhampton City Council","http://opendatacommunities.org/id/metropolitan-district-council/wolverhampton","Amazon EU","104.58","School Improvement","5969","Equipment - Purchase","18/02/2016"
"Wolverhampton City Council","http://opendatacommunities.org/id/metropolitan-district-council/wolverhampton","WM MORRISONS","9.35","Nelson Mandela House","5411","Provisions (Not for resale)","18/02/2016"
"Wolverhampton City Council","http://opendatacommunities.org/id/metropolitan-district-council/wolverhampton","BOOKPOINT LIMITED","51.00","Psychology Service","5192","Books","18/02/2016"
"Wolverhampton City Council","http://opendatacommunities.org/id/metropolitan-district-council/wolverhampton","REGISTRARS OFFICE","26.00","Legal Services","8299","Training Expenses","18/02/2016"
"Wolverhampton City Council","http://opendatacommunities.org/id/metropolitan-district-council/wolverhampton","PREMIER INN","166.65","Workforce Development","3811","Accommodation Costs","18/02/2016"
"Wolverhampton City Council","http://opendatacommunities.org/id/metropolitan-district-council/wolverhampton","FACEBOOK BB8SB9W3U2","40.19","The Little Civic","7311","Marketing \ Non-staff advertising","18/02/2016"
"Wolverhampton City Council","http://opendatacommunities.org/id/metropolitan-district-council/wolverhampton","CUMMINGS BROTHERS LOCK","61.50","Caretakers Community Centre","7399","R&M - Departmental planned (external)","18/02/2016"
"Wolverhampton City Council","http://opendatacommunities.org/id/metropolitan-district-council/wolverhampton","ITUNES.COM/BILL","0.79","Civic Halls Non Direct Management A/C","5735","Computing - Purchase of Software","18/02/2016"
"Wolverhampton City Council","http://opendatacommunities.org/id/metropolitan-district-council/wolverhampton","REDWINGS LODGE","5.79","Valley Park - CIN SWU S17","7011","Provisions (Not for resale)","18/02/2016"
"Wolverhampton City Council","http://opendatacommunities.org/id/metropolitan-district-council/wolverhampton","POST OFFICE COUNTER","176.25","Looked After Team 1","9402","Comms - Postage","18/02/2016"
"Wolverhampton City Council","http://opendatacommunities.org/id/metropolitan-district-council/wolverhampton","POST OFFICE COUNTER","126.00","Safeguarding Admin Resource","9402","Comms - Postage","18/02/2016"
"Wolverhampton City Council","http://opendatacommunities.org/id/metropolitan-district-council/wolverhampton","MAPLIN 268","99.97","Central Baths","5732","Equipment - Purchase","18/02/2016"
"Wolverhampton City Council","http://opendatacommunities.org/id/metropolitan-district-council/wolverhampton","REDWINGS LODGE","3.62","Valley Park - CIN SWU S17","7011","Provisions (Not for resale)","18/02/2016"
"Wolverhampton City Council","http://opendatacommunities.org/id/metropolitan-district-council/wolverhampton","COOKSON PRECIOUS M","9.14","Creative Studies Delivery Area","5094","Equipment - Purchase","18/02/2016"
"Wolverhampton City Council","http://opendatacommunities.org/id/metropolitan-district-council/wolverhampton","Amazon Svcs Europe,SAR","27.29","Global Budgets","5942","Books","18/02/2016"
"Wolverhampton City Council","http://opendatacommunities.org/id/metropolitan-district-council/wolverhampton","WOLVERHAMPTON CC","10.00","Headstart","7523","Car Allowances","18/02/2016"
"Wolverhampton City Council","http://opendatacommunities.org/id/metropolitan-district-council/wolverhampton","Amazon UK Marketplace","5.02","School Improvement","5942","Books","18/02/2016"
"Wolverhampton City Council","http://opendatacommunities.org/id/metropolitan-district-council/wolverhampton","ASDA HOME SHOPPING","77.61","Ernest Bold Court","5411","Provisions (Not for resale)","17/02/2016"
"Wolverhampton City Council","http://opendatacommunities.org/id/metropolitan-district-council/wolverhampton","TRAINLINE","196.45","Customer Services","4112","Public Transport","17/02/2016"
"Wolverhampton City Council","http://opendatacommunities.org/id/metropolitan-district-council/wolverhampton","WOLVERHAMPTON CC","10.00","Headstart","7523","Car Allowances","17/02/2016"
"Wolverhampton City Council","http://opendatacommunities.org/id/metropolitan-district-council/wolverhampton","Virgintrains.co.uk","53.20","Looked After Team 1","4112","Public Transport","17/02/2016"
"Wolverhampton City Council","http://opendatacommunities.org/id/metropolitan-district-council/wolverhampton","CARVER/WOLVERHAMPTON/L","113.40","Big Ceramics","5211","Materials","17/02/2016"
"Wolverhampton City Council","http://opendatacommunities.org/id/metropolitan-district-council/wolverhampton","GASP","159.12","Healthy Schools Team","8299","Materials","17/02/2016"
"Wolverhampton City Council","http://opendatacommunities.org/id/metropolitan-district-council/wolverhampton","BILSTON MOTOR SPARES","8.30","LAC Education Team (LACE)","5533","Materials","17/02/2016"
"Wolverhampton City Council","http://opendatacommunities.org/id/metropolitan-district-council/wolverhampton","B & Q","15.00","Caretakers Community Centre","5211","R&M - Departmental planned (external)","17/02/2016"
"Wolverhampton City Council","http://opendatacommunities.org/id/metropolitan-district-council/wolverhampton","TESCO STORES 6727","6.53","Restorative Justice","5411","Provisions (Not for resale)","17/02/2016"
"Wolverhampton City Council","http://opendatacommunities.org/id/metropolitan-district-council/wolverhampton","MBL SEMINARS","48.00","Legal Services","8299","Training Expenses","17/02/2016"
"Wolverhampton City Council","http://opendatacommunities.org/id/metropolitan-district-council/wolverhampton","FACULTY OF PUBLIC HEAL","100.00","Information & Intelligence","8220","Training Expenses","17/02/2016"
"Wolverhampton City Council","http://opendatacommunities.org/id/metropolitan-district-council/wolverhampton","NATWEST BANK","250.00","Valley Park - CIN SWU S17","6011","Financial Assistance In Exceptional Circ","17/02/2016"
"Wolverhampton City Council","http://opendatacommunities.org/id/metropolitan-district-council/wolverhampton","WM MORRISONS","15.12","CIN - Priory Green MAST - Area 6","5411","Comms - Postage","17/02/2016"
"Wolverhampton City Council","http://opendatacommunities.org/id/metropolitan-district-council/wolverhampton","REDWINGS LODGE","7.71","Valley Park - CIN SWU S17","7011","Provisions (Not for resale)","17/02/2016"
"Wolverhampton City Council","http://opendatacommunities.org/id/metropolitan-district-council/wolverhampton","ASDA SUPERSTORE","40.00","Headstart","5411","Provisions (Not for resale)","17/02/2016"
"Wolverhampton City Council","http://opendatacommunities.org/id/metropolitan-district-council/wolverhampton","PARTONS BUILDING SUPPL","5.95","Caretakers Community Centre","5211","R&M - Departmental planned (external)","17/02/2016"
"Wolverhampton City Council","http://opendatacommunities.org/id/metropolitan-district-council/wolverhampton","WWW.HIT.ORG.UK","60.71","Healthy Schools Team","5969","Equipment - Purchase","17/02/2016"
"Wolverhampton City Council","http://opendatacommunities.org/id/metropolitan-district-council/wolverhampton","OFFICE DEPOT","7.88","Register Office","5111","Stationery","17/02/2016"
"Wolverhampton City Council","http://opendatacommunities.org/id/metropolitan-district-council/wolverhampton","THE YORK HOTEL","60.00","Graiseley - CIN SWU S17","7011","Accommodation Costs","17/02/2016"
"Wolverhampton City Council","http://opendatacommunities.org/id/metropolitan-district-council/wolverhampton","REDWINGS LODGE","11.21","Valley Park - CIN SWU S17","7011","Provisions (Not for resale)","17/02/2016"
"Wolverhampton City Council","http://opendatacommunities.org/id/metropolitan-district-council/wolverhampton","NATWEST BANK","250.00","Valley Park - CIN SWU S17","6011","Financial Assistance In Exceptional Circ","17/02/2016"
"Wolverhampton City Council","http://opendatacommunities.org/id/metropolitan-district-council/wolverhampton","Bax-shop.co.uk","179.17","Central Baths","5732","Equipment - Purchase","17/02/2016"
"Wolverhampton City Council","http://opendatacommunities.org/id/metropolitan-district-council/wolverhampton","COMARK INSTRUMENTS","159.20","Environmental Health - Pub Prot - Gen","5046","Equipment - Purchase","17/02/2016"
"Wolverhampton City Council","http://opendatacommunities.org/id/metropolitan-district-council/wolverhampton","TESCO STORES 5503","8.79","Upper Pendeford Farm Childrens Home","5411","Provisions (Not for resale)","17/02/2016"
"Wolverhampton City Council","http://opendatacommunities.org/id/metropolitan-district-council/wolverhampton","Amazon UK Marketplace","63.51","SEN Sensory Inclusion","5942","Equipment - Purchase","17/02/2016"
"Wolverhampton City Council","http://opendatacommunities.org/id/metropolitan-district-council/wolverhampton","WWW.POSTURITE.CO.UK","46.38","Financial Assessments","5021","Furniture","17/02/2016"
"Wolverhampton City Council","http://opendatacommunities.org/id/metropolitan-district-council/wolverhampton","SAIN ST MARKS","250.00","Childrens with Disabilities Team","6011","Financial Assistance In Exceptional Circ","17/02/2016"
"Wolverhampton City Council","http://opendatacommunities.org/id/metropolitan-district-council/wolverhampton","W M MORRISONS","35.98","Children's Village Nursery","5411","School Meals","17/02/2016"
"Wolverhampton City Council","http://opendatacommunities.org/id/metropolitan-district-council/wolverhampton","ASDA SUPERSTORE","67.95","Headstart","5411","Provisions (Not for resale)","17/02/2016"
"Wolverhampton City Council","http://opendatacommunities.org/id/metropolitan-district-council/wolverhampton","AUDIENCE.UK.COM","75.00","Civic Halls Non Direct Management A/C","8699","Subscriptions","17/02/2016"
"Wolverhampton City Council","http://opendatacommunities.org/id/metropolitan-district-council/wolverhampton","POST OFFICE COUNTER","32.92","Whitmore Reans - CIN SWU S17","9402","Comms - Postage","17/02/2016"
"Wolverhampton City Council","http://opendatacommunities.org/id/metropolitan-district-council/wolverhampton","CUMMINGS BROTHERS LOCK","15.83","Cleaning of Buildings - General","7399","Equipment - Purchase","17/02/2016"
"Wolverhampton City Council","http://opendatacommunities.org/id/metropolitan-district-council/wolverhampton","THE CONSORTIUM/WMS","188.38","Education And Access","5968","Subscriptions","17/02/2016"
"Wolverhampton City Council","http://opendatacommunities.org/id/metropolitan-district-council/wolverhampton","CORPORATE WEAR LTD","234.04","Register Office","7399","Equipment - Purchase","17/02/2016"
"Wolverhampton City Council","http://opendatacommunities.org/id/metropolitan-district-council/wolverhampton","WEST COAST TRAINS","105.80","Graiseley - CIN SWU S17","4112","Public Transport","17/02/2016"
"Wolverhampton City Council","http://opendatacommunities.org/id/metropolitan-district-council/wolverhampton","ASDA HOME SHOPPING","0.12","Ernest Bold Court","5411","Provisions (Not for resale)","17/02/2016"
"Wolverhampton City Council","http://opendatacommunities.org/id/metropolitan-district-council/wolverhampton","WWW.WESTMINSTER-BRIEFI","270.00","Public Health Support Costs","8244","Training Expenses","16/02/2016"
"Wolverhampton City Council","http://opendatacommunities.org/id/metropolitan-district-council/wolverhampton","ITUNES.COM/BILL","8.33","College of Further Education","5735","Computing - Purchase of Software","16/02/2016"
"Wolverhampton City Council","http://opendatacommunities.org/id/metropolitan-district-council/wolverhampton","TRAINLINE","190.23","MAST - Central Team","4112","Public Transport","16/02/2016"
"Wolverhampton City Council","http://opendatacommunities.org/id/metropolitan-district-council/wolverhampton","THE COAL AUTHORITY","59.00","Property Services - Commissioning","9399","Services - Professional Fees","16/02/2016"
"Wolverhampton City Council","http://opendatacommunities.org/id/metropolitan-district-council/wolverhampton","ALDI","180.59","Upper Pendeford Farm Childrens Home","5411","Provisions (Not for resale)","16/02/2016"
"Wolverhampton City Council","http://opendatacommunities.org/id/metropolitan-district-council/wolverhampton","COMBINED COURT","7830.00","Legal Services","9222","Services - Fees and Charges","16/02/2016"
"Wolverhampton City Council","http://opendatacommunities.org/id/metropolitan-district-council/wolverhampton","POST OFFICE COUNTER","1.73","MAST - Central Team","9402","Comms - Postage","16/02/2016"
"Wolverhampton City Council","http://opendatacommunities.org/id/metropolitan-district-council/wolverhampton","Virgintrains.co.uk","308.40","Health Protection & NHS Facing","4112","Public Transport","16/02/2016"
"Wolverhampton City Council","http://opendatacommunities.org/id/metropolitan-district-council/wolverhampton","Amazon UK Marketplace","9.20","SEN Sensory Inclusion","5942","Equipment - Purchase","16/02/2016"
"Wolverhampton City Council","http://opendatacommunities.org/id/metropolitan-district-council/wolverhampton","Amazon UK Marketplace","19.46","SEN Sensory Inclusion","5942","Equipment - Purchase","16/02/2016"
"Wolverhampton City Council","http://opendatacommunities.org/id/metropolitan-district-council/wolverhampton","FTPE WEBTIS 1","32.00","LAC Transitions Team","4112","Client Allowances","16/02/2016"
"Wolverhampton City Council","http://opendatacommunities.org/id/metropolitan-district-council/wolverhampton","Virgintrains.co.uk","118.50","Health Protection & NHS Facing","4112","Public Transport","16/02/2016"
"Wolverhampton City Council","http://opendatacommunities.org/id/metropolitan-district-council/wolverhampton","TVLICENSING.CO.UK","145.50","LAC Transitions Team","7392","Client Allowances","16/02/2016"
"Wolverhampton City Council","http://opendatacommunities.org/id/metropolitan-district-council/wolverhampton","WM MORRISON 024","23.66","Ernest Bold Court","5411","Provisions (Not for resale)","16/02/2016"
"Wolverhampton City Council","http://opendatacommunities.org/id/metropolitan-district-council/wolverhampton","EDS","157.89","Big Ceramics","4215","Comms - Postage","16/02/2016"
"Wolverhampton City Council","http://opendatacommunities.org/id/metropolitan-district-council/wolverhampton","DUDLEY MBC  INTERN","20.24","Bilston 1 - CIN SWU S17","8999","Printing","16/02/2016"
"Wolverhampton City Council","http://opendatacommunities.org/id/metropolitan-district-council/wolverhampton","WWW.THEWORKS.CO.UK","20.00","Education And Access","5942","Books","16/02/2016"
"Wolverhampton City Council","http://opendatacommunities.org/id/metropolitan-district-council/wolverhampton","WWW.POSTURITE.CO.UK","77.94","Financial Assessments","5021","Furniture","16/02/2016"
"Wolverhampton City Council","http://opendatacommunities.org/id/metropolitan-district-council/wolverhampton","REDWINGS LODGE","9.62","Valley Park - CIN SWU S17","7011","Provisions (Not for resale)","16/02/2016"
"Wolverhampton City Council","http://opendatacommunities.org/id/metropolitan-district-council/wolverhampton","CELLMARK","350.00","Bilston 1 - CIN SWU S17","8099","Services - Professional Fees","16/02/2016"
"Wolverhampton City Council","http://opendatacommunities.org/id/metropolitan-district-council/wolverhampton","CELLMARK","350.00","Bilston 1 - CIN SWU S17","8099","Services - Professional Fees","16/02/2016"
"Wolverhampton City Council","http://opendatacommunities.org/id/metropolitan-district-council/wolverhampton","UNIVERSITY OF BIRMINGH","195.00","Central Training","8220","Training Expenses","16/02/2016"
"Wolverhampton City Council","http://opendatacommunities.org/id/metropolitan-district-council/wolverhampton","WWW.CYBERMARKET.CO.UK","120.82","Central Baths","5732","Equipment - Purchase","16/02/2016"
"Wolverhampton City Council","http://opendatacommunities.org/id/metropolitan-district-council/wolverhampton","TVLICENSING.CO.UK","145.50","Court of Protection, Funerals Prot Prop","7392","Services - Supplies & Services to users","16/02/2016"
"Wolverhampton City Council","http://opendatacommunities.org/id/metropolitan-district-council/wolverhampton","TRAINLINE","38.45","Adoption and Residence Team & Allowances","4112","Public Transport","16/02/2016"
"Wolverhampton City Council","http://opendatacommunities.org/id/metropolitan-district-council/wolverhampton","EE & T-MOBILE","99.02","Civic Halls Non Direct Management A/C","4814","Comms - Telephone Call charges","16/02/2016"
"Wolverhampton City Council","http://opendatacommunities.org/id/metropolitan-district-council/wolverhampton","FACEBOOK 3MSRH8WA92","3.43","Communications & Marketing - General","7311","Marketing \ Non-staff advertising","16/02/2016"
"Wolverhampton City Council","http://opendatacommunities.org/id/metropolitan-district-council/wolverhampton","KIDDICARE","79.00","LAC Transitions Team","5719","Client Allowances","16/02/2016"
"Wolverhampton City Council","http://opendatacommunities.org/id/metropolitan-district-council/wolverhampton","FACEBOOK 2MSRH8WA92","596.67","Communications & Marketing - General","7311","Marketing \ Non-staff advertising","16/02/2016"
"Wolverhampton City Council","http://opendatacommunities.org/id/metropolitan-district-council/wolverhampton","WM MORRISON 024","8.60","MAST 1 - Deansfield","5411","Provisions (Not for resale)","16/02/2016"
"Wolverhampton City Council","http://opendatacommunities.org/id/metropolitan-district-council/wolverhampton","CANNON RACEWAY","30.00","Upper Pendeford Farm Childrens Home","7299","Services - Supplies & Services to users","16/02/2016"
"Wolverhampton City Council","http://opendatacommunities.org/id/metropolitan-district-council/wolverhampton","DV247 LIMITED","270.00","Central Baths","5733","Equipment - Purchase","15/02/2016"
"Wolverhampton City Council","http://opendatacommunities.org/id/metropolitan-district-council/wolverhampton","REDWINGS LODGE","11.54","Valley Park - CIN SWU S17","7011","Provisions (Not for resale)","15/02/2016"
"Wolverhampton City Council","http://opendatacommunities.org/id/metropolitan-district-council/wolverhampton","IPSEA","20.00","Parent / Partnership Service","5734","Subscriptions","15/02/2016"
"Wolverhampton City Council","http://opendatacommunities.org/id/metropolitan-district-council/wolverhampton","UNTOUCHABLES","2.50","Education Catering - General Overheads","5231","Materials","15/02/2016"
"Wolverhampton City Council","http://opendatacommunities.org/id/metropolitan-district-council/wolverhampton","Bax-shop.co.uk","10.00","Central Baths","5732","Equipment - Purchase","15/02/2016"
"Wolverhampton City Council","http://opendatacommunities.org/id/metropolitan-district-council/wolverhampton","POST OFFICE COUNTER","23.90","Legal Services","9402","Comms - Postage","15/02/2016"
"Wolverhampton City Council","http://opendatacommunities.org/id/metropolitan-district-council/wolverhampton","Amazon Svcs Europe,SAR","11.39","Language Studies Delivery Area","5942","Books","15/02/2016"
"Wolverhampton City Council","http://opendatacommunities.org/id/metropolitan-district-council/wolverhampton","REDWINGS LODGE","12.08","Valley Park - CIN SWU S17","7011","Provisions (Not for resale)","15/02/2016"
"Wolverhampton City Council","http://opendatacommunities.org/id/metropolitan-district-council/wolverhampton","BLOOMS MENSWEAR","66.66","Mayoral Expenses","5611","Clothing / Uniforms","15/02/2016"
"Wolverhampton City Council","http://opendatacommunities.org/id/metropolitan-district-council/wolverhampton","ROYAL MAIL  0845606040","11.25","SEN Sensory Inclusion","9402","Equipment - Purchase","15/02/2016"
"Wolverhampton City Council","http://opendatacommunities.org/id/metropolitan-district-council/wolverhampton","E01510300000000","40.00","Emergency Duty Team","6011","Financial Assistance In Exceptional Circ","15/02/2016"
"Wolverhampton City Council","http://opendatacommunities.org/id/metropolitan-district-council/wolverhampton","SAINSBURYS (2340)","35.90","Swan Bank","5411","Provisions (Not for resale)","15/02/2016"
"Wolverhampton City Council","http://opendatacommunities.org/id/metropolitan-district-council/wolverhampton","ASDA HOME SHOPPING","96.64","Ernest Bold Court","5411","Provisions (Not for resale)","15/02/2016"
"Wolverhampton City Council","http://opendatacommunities.org/id/metropolitan-district-council/wolverhampton","WWW.MAPLIN.CO.UK","18.32","Central Baths","5732","Equipment - Purchase","15/02/2016"
"Wolverhampton City Council","http://opendatacommunities.org/id/metropolitan-district-council/wolverhampton","Virgintrains.co.uk","54.50","Information Governance Team","4112","Public Transport","15/02/2016"
"Wolverhampton City Council","http://opendatacommunities.org/id/metropolitan-district-council/wolverhampton","B & Q","19.11","Big Ceramics","5211","Materials","15/02/2016"
"Wolverhampton City Council","http://opendatacommunities.org/id/metropolitan-district-council/wolverhampton","LYNDA.COM, INC.","2316.93","Customer Services","8299","Training Expenses","15/02/2016"
"Wolverhampton City Council","http://opendatacommunities.org/id/metropolitan-district-council/wolverhampton","Amazon Svcs Europe,SAR","9.27","Global Budgets","5942","Books","15/02/2016"
"Wolverhampton City Council","http://opendatacommunities.org/id/metropolitan-district-council/wolverhampton","REDWINGS LODGE","10.04","Valley Park - CIN SWU S17","7011","Provisions (Not for resale)","15/02/2016"
"Wolverhampton City Council","http://opendatacommunities.org/id/metropolitan-district-council/wolverhampton","PROTRADE LTD","17.55","Technician","5251","Equipment - Purchase","15/02/2016"
"Wolverhampton City Council","http://opendatacommunities.org/id/metropolitan-district-council/wolverhampton","REDWINGS LODGE","7.87","Valley Park - CIN SWU S17","7011","Provisions (Not for resale)","15/02/2016"
"Wolverhampton City Council","http://opendatacommunities.org/id/metropolitan-district-council/wolverhampton","ARGOS LTD","207.98","LAC Transitions Team","5310","Client Allowances","15/02/2016"
"Wolverhampton City Council","http://opendatacommunities.org/id/metropolitan-district-council/wolverhampton","GRO HM PASSPORT OFFICE","-23.40","Legal Services","9399","Services - Fees and Charges","15/02/2016"
"Wolverhampton City Council","http://opendatacommunities.org/id/metropolitan-district-council/wolverhampton","WWW.VIKING-DIRECT.CO.U","340.49","Legal Services","5111","Stationery","15/02/2016"
"Wolverhampton City Council","http://opendatacommunities.org/id/metropolitan-district-council/wolverhampton","INTERNATIONAL ASSO","520.00","Work Related Studies","8699","Exam Expenses (Non-Employee)","15/02/2016"
"Wolverhampton City Council","http://opendatacommunities.org/id/metropolitan-district-council/wolverhampton","WWW.VIKING-DIRECT.CO.U","38.94","Legal Services","5111","Stationery","15/02/2016"
"Wolverhampton City Council","http://opendatacommunities.org/id/metropolitan-district-council/wolverhampton","POUNDLAND LTD 1463","16.67","Education And Access","5310","Equipment - Purchase","15/02/2016"
"Wolverhampton City Council","http://opendatacommunities.org/id/metropolitan-district-council/wolverhampton","POST OFFICE COUNTER","63.00","MAST 7 - Berrybrook","9402","Comms - Postage","15/02/2016"
"Wolverhampton City Council","http://opendatacommunities.org/id/metropolitan-district-council/wolverhampton","WICKES BUILDING","87.46","Contemporary Gallery","5211","Materials","15/02/2016"
"Wolverhampton City Council","http://opendatacommunities.org/id/metropolitan-district-council/wolverhampton","REDWINGS LODGE","4.33","Valley Park - CIN SWU S17","7011","Provisions (Not for resale)","15/02/2016"
"Wolverhampton City Council","http://opendatacommunities.org/id/metropolitan-district-council/wolverhampton","REDWINGS LODGE","11.92","Valley Park - CIN SWU S17","7011","Provisions (Not for resale)","15/02/2016"
"Wolverhampton City Council","http://opendatacommunities.org/id/metropolitan-district-council/wolverhampton","REDWINGS LODGE","4.42","Valley Park - CIN SWU S17","7011","Provisions (Not for resale)","15/02/2016"
"Wolverhampton City Council","http://opendatacommunities.org/id/metropolitan-district-council/wolverhampton","ASDA HOME SHOPPING","-0.54","Ernest Bold Court","5411","Provisions (Not for resale)","15/02/2016"
"Wolverhampton City Council","http://opendatacommunities.org/id/metropolitan-district-council/wolverhampton","Amazon UK Marketplace","17.97","Technical Support","5942","Books","15/02/2016"
"Wolverhampton City Council","http://opendatacommunities.org/id/metropolitan-district-council/wolverhampton","ASDA HOME SHOPPING","-3.24","Ernest Bold Court","5411","Provisions (Not for resale)","15/02/2016"
"Wolverhampton City Council","http://opendatacommunities.org/id/metropolitan-district-council/wolverhampton","WOLVERHAMPTON CC","10.00","Headstart","7523","Car Allowances","15/02/2016"
"Wolverhampton City Council","http://opendatacommunities.org/id/metropolitan-district-council/wolverhampton","RYMAN","16.69","Delivery & OCE Development","5943","Stationery","15/02/2016"
"Wolverhampton City Council","http://opendatacommunities.org/id/metropolitan-district-council/wolverhampton","Cross Country","215.00","School Improvement","4112","Public Transport","15/02/2016"
"Wolverhampton City Council","http://opendatacommunities.org/id/metropolitan-district-council/wolverhampton","Amazon EU","91.53","Environmental Health - Pub Prot - Gen","5969","Equipment - Purchase","15/02/2016"
"Wolverhampton City Council","http://opendatacommunities.org/id/metropolitan-district-council/wolverhampton","PAPA JOHN'S PENN","34.47","Information & Intelligence","5814","Catering","15/02/2016"
"Wolverhampton City Council","http://opendatacommunities.org/id/metropolitan-district-council/wolverhampton","HMCOURTS-SERVICE.G","20.00","Legal Services","9222","Services - Fees and Charges","15/02/2016"
"Wolverhampton City Council","http://opendatacommunities.org/id/metropolitan-district-council/wolverhampton","Amazon UK Marketplace","46.32","SEN Sensory Inclusion","5942","Equipment - Purchase","15/02/2016"
"Wolverhampton City Council","http://opendatacommunities.org/id/metropolitan-district-council/wolverhampton","Amazon UK Marketplace","8.32","Central Baths","5942","Books","15/02/2016"
"Wolverhampton City Council","http://opendatacommunities.org/id/metropolitan-district-council/wolverhampton","REDWINGS LODGE","9.58","Valley Park - CIN SWU S17","7011","Provisions (Not for resale)","12/02/2016"
"Wolverhampton City Council","http://opendatacommunities.org/id/metropolitan-district-council/wolverhampton","GRO HM PASSPORT OFFICE","23.40","Legal Services","9399","Services - Fees and Charges","12/02/2016"
"Wolverhampton City Council","http://opendatacommunities.org/id/metropolitan-district-council/wolverhampton","ARGOS RETAIL GROUP","178.94","Looked After Team 1","5310","Equipment - Purchase","12/02/2016"
"Wolverhampton City Council","http://opendatacommunities.org/id/metropolitan-district-council/wolverhampton","Amazon EU","53.92","WV Active Business Support","5969","Equipment - Purchase","12/02/2016"
"Wolverhampton City Council","http://opendatacommunities.org/id/metropolitan-district-council/wolverhampton","TIPPERS WOLVERHAMPTON","12.74","Wholesale Market Facilities Management","5072","Equipment - Purchase","12/02/2016"
"Wolverhampton City Council","http://opendatacommunities.org/id/metropolitan-district-council/wolverhampton","SANDWELL MBC/INET","30.00","Legal Services","9399","Services - Fees and Charges","12/02/2016"
"Wolverhampton City Council","http://opendatacommunities.org/id/metropolitan-district-council/wolverhampton","VWO.com","41.87","City Direct","7399","Equipment - Purchase","12/02/2016"
"Wolverhampton City Council","http://opendatacommunities.org/id/metropolitan-district-council/wolverhampton","SAIN WEDNESFIELD","150.00","Duke Street Bungalows","6011","Room Hire","12/02/2016"
"Wolverhampton City Council","http://opendatacommunities.org/id/metropolitan-district-council/wolverhampton","OFFICE DEPOT","-5.49","Bingley - CIN SWU S17","5111","Stationery","12/02/2016"
"Wolverhampton City Council","http://opendatacommunities.org/id/metropolitan-district-council/wolverhampton","Virgintrains.co.uk","202.10","Fostering Team & Allowances","4112","Public Transport","12/02/2016"
"Wolverhampton City Council","http://opendatacommunities.org/id/metropolitan-district-council/wolverhampton","TVLICENSING.CO.UK","145.50","LAC Transitions Team","7392","Client Allowances","12/02/2016"
"Wolverhampton City Council","http://opendatacommunities.org/id/metropolitan-district-council/wolverhampton","TRAINLINE","-160.00","LAC Transitions Team","4112","Client Allowances","12/02/2016"
"Wolverhampton City Council","http://opendatacommunities.org/id/metropolitan-district-council/wolverhampton","123-REG.CO.UK","128.24","Technical Support","4816","Computing - Purchase of Software","12/02/2016"
"Wolverhampton City Council","http://opendatacommunities.org/id/metropolitan-district-council/wolverhampton","TVLICENSING.CO.UK","145.50","LAC Transitions Team","7392","Client Allowances","12/02/2016"
"Wolverhampton City Council","http://opendatacommunities.org/id/metropolitan-district-council/wolverhampton","FSPRG.COM INFFUSE.COM","5.05","Technical Support","5734","Subscriptions","12/02/2016"
"Wolverhampton City Council","http://opendatacommunities.org/id/metropolitan-district-council/wolverhampton","Amazon UK Marketplace","53.94","Technical Support","5942","Computing - Purchase of Hardware","12/02/2016"
"Wolverhampton City Council","http://opendatacommunities.org/id/metropolitan-district-council/wolverhampton","WWW.NISBETS.COM","11.97","Environmental Health - Pub Prot - Gen","5964","Equipment - Purchase","12/02/2016"
"Wolverhampton City Council","http://opendatacommunities.org/id/metropolitan-district-council/wolverhampton","Amazon UK Marketplace","19.95","Bert Williams Leisure Centre","5942","Equipment - Purchase","12/02/2016"
"Wolverhampton City Council","http://opendatacommunities.org/id/metropolitan-district-council/wolverhampton","HUGHES","416.67","LAC Transitions Team","5732","Client Allowances","12/02/2016"
"Wolverhampton City Council","http://opendatacommunities.org/id/metropolitan-district-council/wolverhampton","REDWINGS LODGE","2.50","Valley Park - CIN SWU S17","7011","Provisions (Not for resale)","12/02/2016"
"Wolverhampton City Council","http://opendatacommunities.org/id/metropolitan-district-council/wolverhampton","Amazon UK Marketplace","11.94","Technical Support","5942","Computing - Purchase of Hardware","12/02/2016"
"Wolverhampton City Council","http://opendatacommunities.org/id/metropolitan-district-council/wolverhampton","SAIN WEDNESFIELD","100.00","Duke Street Bungalows","6011","Room Hire","12/02/2016"
"Wolverhampton City Council","http://opendatacommunities.org/id/metropolitan-district-council/wolverhampton","PC WORLD","58.33","Customer Services","5732","Equipment - Purchase","12/02/2016"
"Wolverhampton City Council","http://opendatacommunities.org/id/metropolitan-district-council/wolverhampton","N SOFTWARE INC","1314.28","Customer Services","5045","Computing - Purchase of Hardware","12/02/2016"
"Wolverhampton City Council","http://opendatacommunities.org/id/metropolitan-district-council/wolverhampton","COMBINED COURT","280.00","Legal Services","9222","Services - Fees and Charges","12/02/2016"
"Wolverhampton City Council","http://opendatacommunities.org/id/metropolitan-district-council/wolverhampton","TRAINLINE","17.90","Alfred Squire - CIN SWU S17","4112","Client Transport","12/02/2016"
"Wolverhampton City Council","http://opendatacommunities.org/id/metropolitan-district-council/wolverhampton","ASDA SUPERSTORE","7.63","Civic Centre Catering","5411","Provisions (Not for resale)","12/02/2016"
"Wolverhampton City Council","http://opendatacommunities.org/id/metropolitan-district-council/wolverhampton","BERWICK CARE EQUIPMENT","318.33","46a, Second Avenue, Low Hill","5047","Furniture","12/02/2016"
"Wolverhampton City Council","http://opendatacommunities.org/id/metropolitan-district-council/wolverhampton","ARGOS RETAIL GROUP","108.94","Graiseley - CIN SWU S17","5310","Client Allowances","12/02/2016"
"Wolverhampton City Council","http://opendatacommunities.org/id/metropolitan-district-council/wolverhampton","REDWINGS LODGE","224.75","Valley Park - CIN SWU S17","7011","Accommodation Costs","12/02/2016"
"Wolverhampton City Council","http://opendatacommunities.org/id/metropolitan-district-council/wolverhampton","OFFICE DEPOT","340.96","Technical Support","5111","Furniture","12/02/2016"
"Wolverhampton City Council","http://opendatacommunities.org/id/metropolitan-district-council/wolverhampton","NOTEMACHINE","250.00","Priory Green - CIN SWU S17","6011","Financial Assistance In Exceptional Circ","12/02/2016"
"Wolverhampton City Council","http://opendatacommunities.org/id/metropolitan-district-council/wolverhampton","Virgintrains.co.uk","62.05","Members Expenses","4112","Public Transport","12/02/2016"
"Wolverhampton City Council","http://opendatacommunities.org/id/metropolitan-district-council/wolverhampton","SANDWELL M.B.C.","10.00","Looked After Team 1","9399","Services - Fees and Charges","12/02/2016"
"Wolverhampton City Council","http://opendatacommunities.org/id/metropolitan-district-council/wolverhampton","ARGOS LTD","24.98","Specialist Support Service - North","5310","Equipment - Purchase","12/02/2016"
"Wolverhampton City Council","http://opendatacommunities.org/id/metropolitan-district-council/wolverhampton","POST OFFICE COUNTER","6.45","MAST - Central Team","9402","Comms - Postage","12/02/2016"
"Wolverhampton City Council","http://opendatacommunities.org/id/metropolitan-district-council/wolverhampton","THE FRAMERS","320.00","Bantock House Museum","5970","Materials","12/02/2016"
"Wolverhampton City Council","http://opendatacommunities.org/id/metropolitan-district-council/wolverhampton","Amazon UK Marketplace","25.98","Technical Support","5942","Computing - Purchase of Hardware","12/02/2016"
"Wolverhampton City Council","http://opendatacommunities.org/id/metropolitan-district-council/wolverhampton","UNTOUCHABLES","28.12","Cemeteries","5231","Materials","12/02/2016"
"Wolverhampton City Council","http://opendatacommunities.org/id/metropolitan-district-council/wolverhampton","EUROPCAR","44.20","Headstart","3381","Car Allowances","12/02/2016"
"Wolverhampton City Council","http://opendatacommunities.org/id/metropolitan-district-council/wolverhampton","PREMIER INN","13.98","Adoption and Residence Team & Allowances","3811","Hospitality","12/02/2016"
"Wolverhampton City Council","http://opendatacommunities.org/id/metropolitan-district-council/wolverhampton","SAIN WEDNESFIELD","150.00","Duke Street Bungalows","6011","Room Hire","12/02/2016"
"Wolverhampton City Council","http://opendatacommunities.org/id/metropolitan-district-council/wolverhampton","OFFICE DEPOT","1.94","Bingley - CIN SWU S17","5111","Stationery","11/02/2016"
"Wolverhampton City Council","http://opendatacommunities.org/id/metropolitan-district-council/wolverhampton","CARVER/WOLVERHAMPTON/L","25.06","Wholesale Market Facilities Management","5211","R&M - Departmental planned (external)","11/02/2016"
"Wolverhampton City Council","http://opendatacommunities.org/id/metropolitan-district-council/wolverhampton","TICKETS08712200260","50.00","Central Training","7922","Training Expenses","11/02/2016"
"Wolverhampton City Council","http://opendatacommunities.org/id/metropolitan-district-council/wolverhampton","TRAINLINE","31.47","Looked After Team 1","4112","Public Transport","11/02/2016"
"Wolverhampton City Council","http://opendatacommunities.org/id/metropolitan-district-council/wolverhampton","AUTOTIME SOLUTIONS","89.00","Passenger Transport - General","5943","Stationery","11/02/2016"
"Wolverhampton City Council","http://opendatacommunities.org/id/metropolitan-district-council/wolverhampton","CO-OPERATIVE TRAVE","566.67","Leonardo Da Vinci Project","6051","Subsistence","11/02/2016"
"Wolverhampton City Council","http://opendatacommunities.org/id/metropolitan-district-council/wolverhampton","AirServer Licenses","69.90","Technical Support","5817","Computing - Purchase of Software","11/02/2016"
"Wolverhampton City Council","http://opendatacommunities.org/id/metropolitan-district-council/wolverhampton","WATERVIEW APARTMENTS","99.00","Fostering Team & Allowances","7011","Accommodation Costs","11/02/2016"
"Wolverhampton City Council","http://opendatacommunities.org/id/metropolitan-district-council/wolverhampton","FACEBOOK WHMLC86B92","6.05","Communications & Marketing - General","7311","Marketing \ Non-staff advertising","11/02/2016"
"Wolverhampton City Council","http://opendatacommunities.org/id/metropolitan-district-council/wolverhampton","CUMMINGS BROTHERS LOCK","35.00","Community Enablement","7399","Equipment - Purchase","11/02/2016"
"Wolverhampton City Council","http://opendatacommunities.org/id/metropolitan-district-council/wolverhampton","TRAVELODGE","196.50","City Direct","3615","Services - Supplies & Services to users","11/02/2016"
"Wolverhampton City Council","http://opendatacommunities.org/id/metropolitan-district-council/wolverhampton","NEWQUAY AIRPORT","5.00","Headstart","4582","Car Allowances","11/02/2016"
"Wolverhampton City Council","http://opendatacommunities.org/id/metropolitan-district-council/wolverhampton","TICKETS08712200260","50.00","Central Training","7922","Training Expenses","11/02/2016"
"Wolverhampton City Council","http://opendatacommunities.org/id/metropolitan-district-council/wolverhampton","PAYPAL  SI NETWORK","180.00","Independent Living Service","8299","Training Expenses","11/02/2016"
"Wolverhampton City Council","http://opendatacommunities.org/id/metropolitan-district-council/wolverhampton","HERON FOODS LTD","11.13","Headstart","5499","Catering","11/02/2016"
"Wolverhampton City Council","http://opendatacommunities.org/id/metropolitan-district-council/wolverhampton","TVLICENSING.CO.UK","121.25","LAC Transitions Team","7392","Services - Consultants","11/02/2016"
"Wolverhampton City Council","http://opendatacommunities.org/id/metropolitan-district-council/wolverhampton","Amazon UK Marketplace","27.93","Bilston Museum","5942","Materials for resale","11/02/2016"
"Wolverhampton City Council","http://opendatacommunities.org/id/metropolitan-district-council/wolverhampton","BLAS AR FWYD CYF","51.63","Towers Outdoor Education Centre","5812","Provisions (Not for resale)","11/02/2016"
"Wolverhampton City Council","http://opendatacommunities.org/id/metropolitan-district-council/wolverhampton","CO-OPERATIVE TRAVE","1000.00","Leonardo Da Vinci Project","6051","Subsistence","11/02/2016"
"Wolverhampton City Council","http://opendatacommunities.org/id/metropolitan-district-council/wolverhampton","POST OFFICE COUNTER","19.50","Graiseley - CIN SWU S17","9402","Client Allowances","11/02/2016"
"Wolverhampton City Council","http://opendatacommunities.org/id/metropolitan-district-council/wolverhampton","PAYPAL  THEROTA","344.88","Civic Halls Non Direct Management A/C","5735","Marketing \ Non-staff advertising","11/02/2016"
"Wolverhampton City Council","http://opendatacommunities.org/id/metropolitan-district-council/wolverhampton","O E METCALFE","202.92","Towers Outdoor Education Centre","5499","Provisions (Not for resale)","11/02/2016"
"Wolverhampton City Council","http://opendatacommunities.org/id/metropolitan-district-council/wolverhampton","MORELOCK SIGNS LIM","9.47","Children's Village Children Centre","7333","Equipment - Purchase","11/02/2016"
"Wolverhampton City Council","http://opendatacommunities.org/id/metropolitan-district-council/wolverhampton","TRAINLINE","256.53","Looked After Team 1","4112","Public Transport","11/02/2016"
"Wolverhampton City Council","http://opendatacommunities.org/id/metropolitan-district-council/wolverhampton","BOOTS","99.99","Avenues - CIN SWU S17","5912","Toilet Requisites","11/02/2016"
"Wolverhampton City Council","http://opendatacommunities.org/id/metropolitan-district-council/wolverhampton","TRAINLINE","316.03","LAC Transitions Team","4112","Public Transport","11/02/2016"
"Wolverhampton City Council","http://opendatacommunities.org/id/metropolitan-district-council/wolverhampton","PORTER & WOODMAN (GIFT","438.15","Connexions Contract","5921","R&M - Departmental planned (external)","11/02/2016"
"Wolverhampton City Council","http://opendatacommunities.org/id/metropolitan-district-council/wolverhampton","WM MORRISON 024","10.66","LAC Education Team (LACE)","5411","Provisions (Not for resale)","11/02/2016"
"Wolverhampton City Council","http://opendatacommunities.org/id/metropolitan-district-council/wolverhampton","OFFICE DEPOT","47.16","Bingley - CIN SWU S17","5111","Stationery","11/02/2016"
"Wolverhampton City Council","http://opendatacommunities.org/id/metropolitan-district-council/wolverhampton","TFM FARM & COUNTRY SUP","48.47","Northicote Farm","5399","Equipment - Purchase","11/02/2016"
"Wolverhampton City Council","http://opendatacommunities.org/id/metropolitan-district-council/wolverhampton","NATWEST BANK","50.00","Commissioning Disabilities","6011","Financial Assistance In Exceptional Circ","11/02/2016"
"Wolverhampton City Council","http://opendatacommunities.org/id/metropolitan-district-council/wolverhampton","Amazon Svcs Europe,SAR","11.10","Global Budgets","5942","Books","11/02/2016"
"Wolverhampton City Council","http://opendatacommunities.org/id/metropolitan-district-council/wolverhampton","OFFICE DEPOT","371.16","Independent Living Service","5111","Stationery","11/02/2016"
"Wolverhampton City Council","http://opendatacommunities.org/id/metropolitan-district-council/wolverhampton","Virgintrains.co.uk","85.40","Planning","4112","Public Transport","11/02/2016"
"Wolverhampton City Council","http://opendatacommunities.org/id/metropolitan-district-council/wolverhampton","Amazon Prime","79.00","Legal Services","5968","Subscriptions","11/02/2016"
"Wolverhampton City Council","http://opendatacommunities.org/id/metropolitan-district-council/wolverhampton","PREMIER INN","255.44","Adoption and Residence Team & Allowances","3811","Accommodation Costs","11/02/2016"
"Wolverhampton City Council","http://opendatacommunities.org/id/metropolitan-district-council/wolverhampton","WM MORRISONS","4.55","Upper Pendeford Farm Childrens Home","5411","Provisions (Not for resale)","11/02/2016"
"Wolverhampton City Council","http://opendatacommunities.org/id/metropolitan-district-council/wolverhampton","SCREWFIX DIRECT","29.15","Caretakers Community Centre","5211","R&M - Departmental planned (external)","11/02/2016"
"Wolverhampton City Council","http://opendatacommunities.org/id/metropolitan-district-council/wolverhampton","FACEBOOK VHMLC86B92","593.96","Communications & Marketing - General","7311","Marketing \ Non-staff advertising","11/02/2016"
"Wolverhampton City Council","http://opendatacommunities.org/id/metropolitan-district-council/wolverhampton","Amazon EU","26.00","Language Studies Delivery Area","5969","Books","11/02/2016"
"Wolverhampton City Council","http://opendatacommunities.org/id/metropolitan-district-council/wolverhampton","TFM FARM & COUNTRY SUP","188.32","Northicote Farm","5399","Equipment - Purchase","11/02/2016"
"Wolverhampton City Council","http://opendatacommunities.org/id/metropolitan-district-council/wolverhampton","MILLENNIUM GLOUCES","-108.74","Learning Technologies","7011","Conference Expenses","11/02/2016"
"Wolverhampton City Council","http://opendatacommunities.org/id/metropolitan-district-council/wolverhampton","POST OFFICE COUNTER","126.00","Fostering Team & Allowances","9402","Comms - Postage","11/02/2016"
"Wolverhampton City Council","http://opendatacommunities.org/id/metropolitan-district-council/wolverhampton","SCREWFIX DIRECT","73.65","Technician","5211","Materials","11/02/2016"
"Wolverhampton City Council","http://opendatacommunities.org/id/metropolitan-district-council/wolverhampton","TRAINLINE","143.11","LAC Transitions Team","4112","Client Allowances","11/02/2016"
"Wolverhampton City Council","http://opendatacommunities.org/id/metropolitan-district-council/wolverhampton","TRAINLINE","15.05","Looked After Team 1","4112","Public Transport","11/02/2016"
"Wolverhampton City Council","http://opendatacommunities.org/id/metropolitan-district-council/wolverhampton","TESCO STORES (6741)","11.67","LAC Education Team (LACE)","5411","Provisions (Not for resale)","11/02/2016"
"Wolverhampton City Council","http://opendatacommunities.org/id/metropolitan-district-council/wolverhampton","SPAR SIOP TANDDERWEN","191.94","Towers Outdoor Education Centre","5411","Provisions (Not for resale)","11/02/2016"
"Wolverhampton City Council","http://opendatacommunities.org/id/metropolitan-district-council/wolverhampton","WWW.DOITWISER.CO.UK","99.90","City Direct","5169","Materials","11/02/2016"
"Wolverhampton City Council","http://opendatacommunities.org/id/metropolitan-district-council/wolverhampton","TESCO STORES 6727","8.10","Restorative Justice","5411","Provisions (Not for resale)","11/02/2016"
"Wolverhampton City Council","http://opendatacommunities.org/id/metropolitan-district-council/wolverhampton","PREMIER INN","297.97","Adoption and Residence Team & Allowances","3811","Accommodation Costs","11/02/2016"
"Wolverhampton City Council","http://opendatacommunities.org/id/metropolitan-district-council/wolverhampton","CUMMINGS BROTHERS LOCK","28.33","Parks - Ranger Service","7399","Equipment - Purchase","11/02/2016"
"Wolverhampton City Council","http://opendatacommunities.org/id/metropolitan-district-council/wolverhampton","Wix.com","1.90","Technical Support","5817","Subscriptions","11/02/2016"
"Wolverhampton City Council","http://opendatacommunities.org/id/metropolitan-district-council/wolverhampton","MILLENNIUM GLOUCES","-107.91","Learning Technologies","7011","Conference Expenses","11/02/2016"
"Wolverhampton City Council","http://opendatacommunities.org/id/metropolitan-district-council/wolverhampton","LOVE2SHOP.CO.UK","385.95","Information & Intelligence","8641","Educ Trips, Holidays, Outings, Activity","11/02/2016"
"Wolverhampton City Council","http://opendatacommunities.org/id/metropolitan-district-council/wolverhampton","REGISTRARS OFFICE","29.00","Legal Services","8299","Training Expenses","11/02/2016"
"Wolverhampton City Council","http://opendatacommunities.org/id/metropolitan-district-council/wolverhampton","BARCLAYS BANK PLC","150.00","46a, Second Avenue, Low Hill","6011","Services - Supplies & Services to users","11/02/2016"
"Wolverhampton City Council","http://opendatacommunities.org/id/metropolitan-district-council/wolverhampton","CENTURY ELECTRICAL WHO","26.40","Caretakers Community Centre","5065","R&M - Departmental planned (external)","11/02/2016"
"Wolverhampton City Council","http://opendatacommunities.org/id/metropolitan-district-council/wolverhampton","TESCO STORES (6741)","1.00","LAC Education Team (LACE)","5411","Provisions (Not for resale)","11/02/2016"
"Wolverhampton City Council","http://opendatacommunities.org/id/metropolitan-district-council/wolverhampton","COFFEE REPUBLIC","4.55","Headstart","5812","Car Allowances","11/02/2016"
"Wolverhampton City Council","http://opendatacommunities.org/id/metropolitan-district-council/wolverhampton","CO-OPERATIVE TRAVE","1000.00","Leonardo Da Vinci Project","6051","Subsistence","11/02/2016"
"Wolverhampton City Council","http://opendatacommunities.org/id/metropolitan-district-council/wolverhampton","TV LICENSING","145.50","Action for Independence","7392","Services - Consultants","11/02/2016"
"Wolverhampton City Council","http://opendatacommunities.org/id/metropolitan-district-council/wolverhampton","CO-OPERATIVE TRAVE","1000.00","Leonardo Da Vinci Project","6051","Subsistence","11/02/2016"
"Wolverhampton City Council","http://opendatacommunities.org/id/metropolitan-district-council/wolverhampton","Amazon Prime","-79.00","MAST 8 - Wednesfield","5968","Subscriptions","10/02/2016"
"Wolverhampton City Council","http://opendatacommunities.org/id/metropolitan-district-council/wolverhampton","Virgintrains.co.uk","195.00","Fostering Team & Allowances","4112","Public Transport","10/02/2016"
"Wolverhampton City Council","http://opendatacommunities.org/id/metropolitan-district-council/wolverhampton","ALDI","5.21","Headstart","5411","Provisions (Not for resale)","10/02/2016"
"Wolverhampton City Council","http://opendatacommunities.org/id/metropolitan-district-council/wolverhampton","OFFICE DEPOT","426.20","Technical Support","5111","Furniture","10/02/2016"
"Wolverhampton City Council","http://opendatacommunities.org/id/metropolitan-district-council/wolverhampton","SUITES AND BEDS","265.83","Alfred Squire - CIN SWU S17","5712","Furniture","10/02/2016"
"Wolverhampton City Council","http://opendatacommunities.org/id/metropolitan-district-council/wolverhampton","CUMMINGS BROTHERS LOCK","12.50","Caretakers Community Centre","7399","R&M - Departmental planned (external)","10/02/2016"
"Wolverhampton City Council","http://opendatacommunities.org/id/metropolitan-district-council/wolverhampton","Virgintrains.co.uk","82.10","Private Sector Housing","4112","Public Transport","10/02/2016"
"Wolverhampton City Council","http://opendatacommunities.org/id/metropolitan-district-council/wolverhampton","ASDA HOME SHOPPING","66.98","Ernest Bold Court","5411","Provisions (Not for resale)","10/02/2016"
"Wolverhampton City Council","http://opendatacommunities.org/id/metropolitan-district-council/wolverhampton","PAYPAL  BUNZLRETAIL","16.29","Ernest Bold Court","5047","Materials","10/02/2016"
"Wolverhampton City Council","http://opendatacommunities.org/id/metropolitan-district-council/wolverhampton","REDWINGS LODGE","66.58","Valley Park - CIN SWU S17","7011","Accommodation Costs","10/02/2016"
"Wolverhampton City Council","http://opendatacommunities.org/id/metropolitan-district-council/wolverhampton","CUMMINGS BROTHERS LOCK","16.25","Caretakers Community Centre","7399","R&M - Departmental planned (external)","10/02/2016"
"Wolverhampton City Council","http://opendatacommunities.org/id/metropolitan-district-council/wolverhampton","TRAINLINE","23.21","SEN Special Education Admin","4112","Public Transport","10/02/2016"
"Wolverhampton City Council","http://opendatacommunities.org/id/metropolitan-district-council/wolverhampton","ASDA HOME SHOPPING","0.03","Ernest Bold Court","5411","Provisions (Not for resale)","10/02/2016"
"Wolverhampton City Council","http://opendatacommunities.org/id/metropolitan-district-council/wolverhampton","Virgintrains.co.uk","37.90","Looked After Team 1","4112","Public Transport","10/02/2016"
"Wolverhampton City Council","http://opendatacommunities.org/id/metropolitan-district-council/wolverhampton","PREMIER INN","-17.98","Adoption and Residence Team & Allowances","3811","Hospitality","10/02/2016"
"Wolverhampton City Council","http://opendatacommunities.org/id/metropolitan-district-council/wolverhampton","ARGOS DIRECT","-8.95","Fostering Team & Allowances","5310","Equipment - Purchase","10/02/2016"
"Wolverhampton City Council","http://opendatacommunities.org/id/metropolitan-district-council/wolverhampton","TABLE TABLE41027555","23.95","Headstart","5812","Car Allowances","10/02/2016"
"Wolverhampton City Council","http://opendatacommunities.org/id/metropolitan-district-council/wolverhampton","ASDA SUPERSTORE","23.50","Whitmore Reans - CIN SWU S17","5411","Provisions (Not for resale)","10/02/2016"
"Wolverhampton City Council","http://opendatacommunities.org/id/metropolitan-district-council/wolverhampton","DVSA MOT COMP 2","102.50","Fleet Management","9399","Services - Fees and Charges","10/02/2016"
"Wolverhampton City Council","http://opendatacommunities.org/id/metropolitan-district-council/wolverhampton","ANGEL SPRINGS LTD","138.36","Headstart","5811","Catering","10/02/2016"
"Wolverhampton City Council","http://opendatacommunities.org/id/metropolitan-district-council/wolverhampton","ESENDEX LIMITED","25.00","Civic Halls Non Direct Management A/C","4814","Comms - Telephone Call charges","10/02/2016"
"Wolverhampton City Council","http://opendatacommunities.org/id/metropolitan-district-council/wolverhampton","ASDA SUPERSTORE","12.00","Whitmore Reans - CIN SWU S17","5411","Provisions (Not for resale)","10/02/2016"
"Wolverhampton City Council","http://opendatacommunities.org/id/metropolitan-district-council/wolverhampton","CENTURY ELECTRICAL WHO","64.75","Caretakers Community Centre","5065","R&M - Departmental planned (external)","10/02/2016"
"Wolverhampton City Council","http://opendatacommunities.org/id/metropolitan-district-council/wolverhampton","Virgintrains.co.uk","45.00","Mental Health Assessment & Care Mgmt","4112","Public Transport","10/02/2016"
"Wolverhampton City Council","http://opendatacommunities.org/id/metropolitan-district-council/wolverhampton","PAYPAL  COMICCOMPAN","227.36","Healthy Schools Team","8999","Marketing \ Non-staff advertising","10/02/2016"
"Wolverhampton City Council","http://opendatacommunities.org/id/metropolitan-district-council/wolverhampton","TRAINLINE","82.50","Mental Health Assessment & Care Mgmt","4112","Public Transport","10/02/2016"
"Wolverhampton City Council","http://opendatacommunities.org/id/metropolitan-district-council/wolverhampton","ASDA SUPERSTORE","13.50","Whitmore Reans - CIN SWU S17","5411","Provisions (Not for resale)","10/02/2016"
"Wolverhampton City Council","http://opendatacommunities.org/id/metropolitan-district-council/wolverhampton","TRAINLINE","18.92","SEN Special Education Admin","4112","Public Transport","10/02/2016"
"Wolverhampton City Council","http://opendatacommunities.org/id/metropolitan-district-council/wolverhampton","AUTOGRILL CATERING UK","17.70","Headstart","5812","Car Allowances","10/02/2016"
"Wolverhampton City Council","http://opendatacommunities.org/id/metropolitan-district-council/wolverhampton","ASDA SUPERSTORE","50.35","46a, Second Avenue, Low Hill","5411","Provisions (Not for resale)","10/02/2016"
"Wolverhampton City Council","http://opendatacommunities.org/id/metropolitan-district-council/wolverhampton","Amazon Svcs Europe,SAR","9.71","Global Budgets","5942","Books","10/02/2016"
"Wolverhampton City Council","http://opendatacommunities.org/id/metropolitan-district-council/wolverhampton","TRAINLINE","-22.00","SEN Special Education Admin","4112","Public Transport","10/02/2016"
"Wolverhampton City Council","http://opendatacommunities.org/id/metropolitan-district-council/wolverhampton","THE POST OFFICE","58.75","Looked After Team 1","9402","Services - Fees and Charges","10/02/2016"
"Wolverhampton City Council","http://opendatacommunities.org/id/metropolitan-district-council/wolverhampton","OFFICE DEPOT","60.58","Physical & Sensory Disabilities Mgmt","5111","Stationery","10/02/2016"
"Wolverhampton City Council","http://opendatacommunities.org/id/metropolitan-district-council/wolverhampton","OFFICE DEPOT","32.31","Duke Street Bungalows","5111","Stationery","10/02/2016"
"Wolverhampton City Council","http://opendatacommunities.org/id/metropolitan-district-council/wolverhampton","MAX SPIELMANN LTD","4.17","Mayoral Expenses","7221","Hospitality","10/02/2016"
"Wolverhampton City Council","http://opendatacommunities.org/id/metropolitan-district-council/wolverhampton","ALLDAY TIME SYSTEM","65.95","Arbor Scheme","5046","Stationery","10/02/2016"
"Wolverhampton City Council","http://opendatacommunities.org/id/metropolitan-district-council/wolverhampton","OFFICE DEPOT","68.47","Macmillan Welfare Rights","5111","Stationery","10/02/2016"
"Wolverhampton City Council","http://opendatacommunities.org/id/metropolitan-district-council/wolverhampton","WWW.AVPARTMASTER.NET","124.31","Blakenhall Commty & Healthy Living Ctr","7622","Equipment - R & M","09/02/2016"
"Wolverhampton City Council","http://opendatacommunities.org/id/metropolitan-district-council/wolverhampton","TIPPERS WOLVERHAMPTON","2.31","Caretakers Community Centre","5072","R&M - Departmental planned (external)","09/02/2016"
"Wolverhampton City Council","http://opendatacommunities.org/id/metropolitan-district-council/wolverhampton","Amazon UK Marketplace","4.79","Global Budgets","5942","Books","09/02/2016"
"Wolverhampton City Council","http://opendatacommunities.org/id/metropolitan-district-council/wolverhampton","G & M HALE LTD","147.65","Creative Studies Delivery Area","5992","Materials for resale","09/02/2016"
"Wolverhampton City Council","http://opendatacommunities.org/id/metropolitan-district-council/wolverhampton","G & M HALE LTD","115.40","Discretionary Fund","5992","Materials","09/02/2016"
"Wolverhampton City Council","http://opendatacommunities.org/id/metropolitan-district-council/wolverhampton","TIPPERS WOLVERHAMPTON","4.96","Caretakers Community Centre","5072","R&M - Departmental planned (external)","09/02/2016"
"Wolverhampton City Council","http://opendatacommunities.org/id/metropolitan-district-council/wolverhampton","Virgintrains.co.uk","307.80","Environmental Health - Pub Prot - Gen","4112","Services - Fees and Charges","09/02/2016"
"Wolverhampton City Council","http://opendatacommunities.org/id/metropolitan-district-council/wolverhampton","Amazon UK Marketplace","4.13","Global Budgets","5942","Books","09/02/2016"
"Wolverhampton City Council","http://opendatacommunities.org/id/metropolitan-district-council/wolverhampton","WOLVERHAMPTON CC","4.50","Cemeteries","7523","Car Allowances","09/02/2016"
"Wolverhampton City Council","http://opendatacommunities.org/id/metropolitan-district-council/wolverhampton","BT PAY BY PHONE","62.97","Makers Dozen","4814","Comms - Telephone Call charges","09/02/2016"
"Wolverhampton City Council","http://opendatacommunities.org/id/metropolitan-district-council/wolverhampton","Virgintrains.co.uk","190.40","Environmental Health - Pub Prot - Gen","4112","Services - Fees and Charges","09/02/2016"
"Wolverhampton City Council","http://opendatacommunities.org/id/metropolitan-district-council/wolverhampton","WWW.MDNSUPPLIES.CO.UK","43.93","Civic Centre","5085","Equipment - Purchase","09/02/2016"
"Wolverhampton City Council","http://opendatacommunities.org/id/metropolitan-district-council/wolverhampton","Car AirportRentals.com","29.03","Headstart","4722","Car Allowances","09/02/2016"
"Wolverhampton City Council","http://opendatacommunities.org/id/metropolitan-district-council/wolverhampton","G & M HALE (SUNDRIES)","35.15","Creative Studies Delivery Area","5992","Materials for resale","09/02/2016"
"Wolverhampton City Council","http://opendatacommunities.org/id/metropolitan-district-council/wolverhampton","ASDA SUPERSTORE","4.50","Graiseley - CIN SWU S17","5411","Provisions (Not for resale)","09/02/2016"
"Wolverhampton City Council","http://opendatacommunities.org/id/metropolitan-district-council/wolverhampton","BT PAY BY PHONE","43.23","Civic Hall Administration Overhead Acct","4814","Comms - Telephone Call charges","09/02/2016"
"Wolverhampton City Council","http://opendatacommunities.org/id/metropolitan-district-council/wolverhampton","GRO HM PASSPORT OFFICE","7.71","LAC Transitions Team","9399","Client Allowances","09/02/2016"
"Wolverhampton City Council","http://opendatacommunities.org/id/metropolitan-district-council/wolverhampton","ROYAL MAIL  0845606040","1.50","Revenues","9402","Comms - Postage","09/02/2016"
"Wolverhampton City Council","http://opendatacommunities.org/id/metropolitan-district-council/wolverhampton","ALDI","135.40","Upper Pendeford Farm Childrens Home","5411","Provisions (Not for resale)","09/02/2016"
"Wolverhampton City Council","http://opendatacommunities.org/id/metropolitan-district-council/wolverhampton","Amazon EU","24.29","Art Gallery","5969","Equipment - Purchase","09/02/2016"
"Wolverhampton City Council","http://opendatacommunities.org/id/metropolitan-district-council/wolverhampton","REGISTRARS OFFICE","29.00","Legal Services","8299","Training Expenses","09/02/2016"
"Wolverhampton City Council","http://opendatacommunities.org/id/metropolitan-district-council/wolverhampton","PRINTER MAINTENANCE LT","40.83","Central Baths","5065","Equipment - Purchase","09/02/2016"
"Wolverhampton City Council","http://opendatacommunities.org/id/metropolitan-district-council/wolverhampton","ASDA SUPERSTORE","150.00","Graiseley - CIN SWU S17","5411","Client Allowances","09/02/2016"
"Wolverhampton City Council","http://opendatacommunities.org/id/metropolitan-district-council/wolverhampton","WWW.SIMPLYLAMPS.CO.UK","69.00","Blakenhall Commty & Healthy Living Ctr","5065","Equipment - R & M","09/02/2016"
"Wolverhampton City Council","http://opendatacommunities.org/id/metropolitan-district-council/wolverhampton","WOLVERHAMPTON CITY COU","17.50","Blakenhall Commty & Healthy Living Ctr","9399","Services - General Licences","09/02/2016"
"Wolverhampton City Council","http://opendatacommunities.org/id/metropolitan-district-council/wolverhampton","WWW.VIKING-DIRECT.CO.U","17.80","Blakenhall Commty & Healthy Living Ctr","5111","Stationery","09/02/2016"
"Wolverhampton City Council","http://opendatacommunities.org/id/metropolitan-district-council/wolverhampton","SCREWFIX DIRECT","11.96","Caretakers Community Centre","5211","R&M - Departmental planned (external)","09/02/2016"
"Wolverhampton City Council","http://opendatacommunities.org/id/metropolitan-district-council/wolverhampton","ARGOS RETAIL GROUP","179.98","LAC Transitions Team","5310","Client Allowances","09/02/2016"
"Wolverhampton City Council","http://opendatacommunities.org/id/metropolitan-district-council/wolverhampton","BT PAY BY PHONE","27.31","Art Gallery","4814","Comms - Telephone Call charges","09/02/2016"
"Wolverhampton City Council","http://opendatacommunities.org/id/metropolitan-district-council/wolverhampton","WWW.STERLINGEVENTS.CO.","90.00","Public Health - Healthier Places Team","5999","Subscriptions","09/02/2016"
"Wolverhampton City Council","http://opendatacommunities.org/id/metropolitan-district-council/wolverhampton","ARGOS LTD 664","284.12","LAC Transitions Team","5310","Client Allowances","08/02/2016"
"Wolverhampton City Council","http://opendatacommunities.org/id/metropolitan-district-council/wolverhampton","WIX.COM","46.57","Technical Support","5968","Subscriptions","08/02/2016"
"Wolverhampton City Council","http://opendatacommunities.org/id/metropolitan-district-council/wolverhampton","OFFICE DEPOT","38.34","Revenues","5111","Stationery","08/02/2016"
"Wolverhampton City Council","http://opendatacommunities.org/id/metropolitan-district-council/wolverhampton","NETWORK WEST MIDLANDS","53.00","MAST 7 - Berrybrook","9399","Public Transport","08/02/2016"
"Wolverhampton City Council","http://opendatacommunities.org/id/metropolitan-district-council/wolverhampton","SCREWFIX DIRECT","8.32","Revenues","5211","Materials","08/02/2016"
"Wolverhampton City Council","http://opendatacommunities.org/id/metropolitan-district-council/wolverhampton","Amazon UK Marketplace","28.20","Central Baths","5942","Books","08/02/2016"
"Wolverhampton City Council","http://opendatacommunities.org/id/metropolitan-district-council/wolverhampton","WWW.TRAIDCRAFT.CO.UK","176.67","Civic Centre Catering","5964","Equipment - Purchase","08/02/2016"
"Wolverhampton City Council","http://opendatacommunities.org/id/metropolitan-district-council/wolverhampton","INT DECORATIVE SUR","912.40","DCMS Wolfson - Contemp Gallery Refurb","5712","Equipment - Purchase","08/02/2016"
"Wolverhampton City Council","http://opendatacommunities.org/id/metropolitan-district-council/wolverhampton","ALDI","36.18","Children's Village Nursery","5411","School Meals","08/02/2016"
"Wolverhampton City Council","http://opendatacommunities.org/id/metropolitan-district-council/wolverhampton","REGISTRARS OFFICE","58.00","Legal Services","8299","Training Expenses","08/02/2016"
"Wolverhampton City Council","http://opendatacommunities.org/id/metropolitan-district-council/wolverhampton","ALDI","2.97","Upper Pendeford Farm Childrens Home","5411","Provisions (Not for resale)","08/02/2016"
"Wolverhampton City Council","http://opendatacommunities.org/id/metropolitan-district-council/wolverhampton","CO-OP GROUP PETROL","2.48","Bilston Museum","5541","Materials","08/02/2016"
"Wolverhampton City Council","http://opendatacommunities.org/id/metropolitan-district-council/wolverhampton","COOKSON PRECIOUS M","117.43","AES Staff Development","5094","Equipment - Purchase","08/02/2016"
"Wolverhampton City Council","http://opendatacommunities.org/id/metropolitan-district-council/wolverhampton","ASDA HOME SHOPPING","99.35","Ernest Bold Court","5411","Provisions (Not for resale)","08/02/2016"
"Wolverhampton City Council","http://opendatacommunities.org/id/metropolitan-district-council/wolverhampton","123-REG.CO.UK","6.98","Technical Support","4816","Computing - Purchase of Software","08/02/2016"
"Wolverhampton City Council","http://opendatacommunities.org/id/metropolitan-district-council/wolverhampton","ARGOS LTD 664","307.90","LAC Transitions Team","5310","Client Allowances","08/02/2016"
"Wolverhampton City Council","http://opendatacommunities.org/id/metropolitan-district-council/wolverhampton","ASDA SUPERSTORE","10.00","Central Baths","5411","Provisions (Not for resale)","08/02/2016"
"Wolverhampton City Council","http://opendatacommunities.org/id/metropolitan-district-council/wolverhampton","OFFICE DEPOT","18.78","Technical Support","5111","Furniture","08/02/2016"
"Wolverhampton City Council","http://opendatacommunities.org/id/metropolitan-district-council/wolverhampton","WIX.COM","46.57","Technical Support","5968","Subscriptions","08/02/2016"
"Wolverhampton City Council","http://opendatacommunities.org/id/metropolitan-district-council/wolverhampton","OFFICE DEPOT","12.80","Street Cleansing East","5111","Stationery","08/02/2016"
"Wolverhampton City Council","http://opendatacommunities.org/id/metropolitan-district-council/wolverhampton","WWW.TRAIDCRAFT.CO.UK","198.30","Civic Centre Catering","5964","Equipment - Purchase","08/02/2016"
"Wolverhampton City Council","http://opendatacommunities.org/id/metropolitan-district-council/wolverhampton","WEST COAST TRAINS","-190.40","Environmental Health - Pub Prot - Gen","4112","Services - Fees and Charges","08/02/2016"
"Wolverhampton City Council","http://opendatacommunities.org/id/metropolitan-district-council/wolverhampton","MILLENNIUM GLOUCES","107.91","Learning Technologies","7011","Conference Expenses","08/02/2016"
"Wolverhampton City Council","http://opendatacommunities.org/id/metropolitan-district-council/wolverhampton","DELACAMP UK LTD","79.17","Central Baths","5943","Stationery","08/02/2016"
"Wolverhampton City Council","http://opendatacommunities.org/id/metropolitan-district-council/wolverhampton","WWW.TOENGES.DE","26.95","Childrens with Disabilities Team","5111","Stationery","08/02/2016"
"Wolverhampton City Council","http://opendatacommunities.org/id/metropolitan-district-council/wolverhampton","Amazon EU","69.90","Patching","5969","Equipment - Purchase","08/02/2016"
"Wolverhampton City Council","http://opendatacommunities.org/id/metropolitan-district-council/wolverhampton","POST OFFICE COUNTER","63.00","MAST - Central Team","9402","Fines & Penalties","08/02/2016"
"Wolverhampton City Council","http://opendatacommunities.org/id/metropolitan-district-council/wolverhampton","MILLENNIUM GLOUCES","108.74","Learning Technologies","7011","Conference Expenses","08/02/2016"
"Wolverhampton City Council","http://opendatacommunities.org/id/metropolitan-district-council/wolverhampton","WWW.PRIMROSE.CO.UK","37.48","Play General","5261","Equipment - Purchase","08/02/2016"
"Wolverhampton City Council","http://opendatacommunities.org/id/metropolitan-district-council/wolverhampton","DUNELM (SOFT FURNISHIN","33.32","LAC Transitions Team","5714","Client Allowances","08/02/2016"
"Wolverhampton City Council","http://opendatacommunities.org/id/metropolitan-district-council/wolverhampton","YOUNGS SHOE REPAIRS LI","7.50","MAST 2 - Bilston","7251","Fixtures and Fittings - R&M","08/02/2016"
"Wolverhampton City Council","http://opendatacommunities.org/id/metropolitan-district-council/wolverhampton","SAINSBURYS (2340)","47.10","Swan Bank","5411","Provisions (Not for resale)","08/02/2016"
"Wolverhampton City Council","http://opendatacommunities.org/id/metropolitan-district-council/wolverhampton","OFFICE DEPOT","37.56","Technical Support","5111","Furniture","08/02/2016"
"Wolverhampton City Council","http://opendatacommunities.org/id/metropolitan-district-council/wolverhampton","MILLENNIUM GLOUCES","108.74","Learning Technologies","7011","Conference Expenses","08/02/2016"
"Wolverhampton City Council","http://opendatacommunities.org/id/metropolitan-district-council/wolverhampton","COMBINED COURT","2785.00","Legal Services","9222","Services - Fees and Charges","08/02/2016"
"Wolverhampton City Council","http://opendatacommunities.org/id/metropolitan-district-council/wolverhampton","123-REG.CO.UK","6.98","Technical Support","4816","Computing - Purchase of Software","08/02/2016"
"Wolverhampton City Council","http://opendatacommunities.org/id/metropolitan-district-council/wolverhampton","Amazon UK Marketplace","8.64","Global Budgets","5942","Books","08/02/2016"
"Wolverhampton City Council","http://opendatacommunities.org/id/metropolitan-district-council/wolverhampton","WIX.COM","46.57","Technical Support","5968","Subscriptions","08/02/2016"
"Wolverhampton City Council","http://opendatacommunities.org/id/metropolitan-district-council/wolverhampton","Amazon UK Marketplace","34.69","Ernest Bold Court","5942","Equipment - R & M","08/02/2016"
"Wolverhampton City Council","http://opendatacommunities.org/id/metropolitan-district-council/wolverhampton","TESCO STORE 3414","20.00","School Crossing Patrol","5411","Comms - Mobile Telephones","08/02/2016"
"Wolverhampton City Council","http://opendatacommunities.org/id/metropolitan-district-council/wolverhampton","ASDA HOME SHOPPING","-0.63","Ernest Bold Court","5411","Provisions (Not for resale)","08/02/2016"
"Wolverhampton City Council","http://opendatacommunities.org/id/metropolitan-district-council/wolverhampton","Amazon EU","25.12","Global Budgets","5969","Books","08/02/2016"
"Wolverhampton City Council","http://opendatacommunities.org/id/metropolitan-district-council/wolverhampton","HOBBYCRAFT (INTERNET)","36.25","Education And Access","5970","Materials","08/02/2016"
"Wolverhampton City Council","http://opendatacommunities.org/id/metropolitan-district-council/wolverhampton","WEST COAST TRAINS","190.40","Environmental Health - Pub Prot - Gen","4112","Services - Fees and Charges","08/02/2016"
"Wolverhampton City Council","http://opendatacommunities.org/id/metropolitan-district-council/wolverhampton","SAINSBURYS 2040","27.65","Duke Street Bungalows","5411","Provisions (Not for resale)","08/02/2016"
"Wolverhampton City Council","http://opendatacommunities.org/id/metropolitan-district-council/wolverhampton","OFFICE DEPOT","875.97","Technical Support","5111","Stationery","08/02/2016"
"Wolverhampton City Council","http://opendatacommunities.org/id/metropolitan-district-council/wolverhampton","PREMIER INN","209.46","Adoption and Residence Team & Allowances","3811","Accommodation Costs","08/02/2016"
"Wolverhampton City Council","http://opendatacommunities.org/id/metropolitan-district-council/wolverhampton","WIX.COM","46.57","Technical Support","5968","Subscriptions","08/02/2016"
"Wolverhampton City Council","http://opendatacommunities.org/id/metropolitan-district-council/wolverhampton","TRAINLINE","98.43","Looked After Team 1","4112","Public Transport","08/02/2016"
"Wolverhampton City Council","http://opendatacommunities.org/id/metropolitan-district-council/wolverhampton","REDWINGS LODGE","133.15","Valley Park - CIN SWU S17","7011","Accommodation Costs","08/02/2016"
"Wolverhampton City Council","http://opendatacommunities.org/id/metropolitan-district-council/wolverhampton","OFFICE DEPOT","52.34","Childrens with Disabilities Team","5111","Stationery","08/02/2016"
"Wolverhampton City Council","http://opendatacommunities.org/id/metropolitan-district-council/wolverhampton","WEST COAST TRAINS","5.40","Children & Young People Support Costs","4112","Public Transport","08/02/2016"
"Wolverhampton City Council","http://opendatacommunities.org/id/metropolitan-district-council/wolverhampton","LIDL UK","1.92","Ernest Bold Court","5411","Provisions (Not for resale)","08/02/2016"
"Wolverhampton City Council","http://opendatacommunities.org/id/metropolitan-district-council/wolverhampton","OFFICE STATIONERS","40.00","AES Staff Development","5943","Stationery","08/02/2016"
"Wolverhampton City Council","http://opendatacommunities.org/id/metropolitan-district-council/wolverhampton","OFFICE DEPOT","42.22","Fostering Team","5111","Stationery","08/02/2016"
"Wolverhampton City Council","http://opendatacommunities.org/id/metropolitan-district-council/wolverhampton","THE YORK HOTEL","205.83","Emergency Duty Team","7011","Services - Supplies & Services to users","08/02/2016"
"Wolverhampton City Council","http://opendatacommunities.org/id/metropolitan-district-council/wolverhampton","OFFICE DEPOT","15.30","Street Cleansing East","5111","Stationery","08/02/2016"
"Wolverhampton City Council","http://opendatacommunities.org/id/metropolitan-district-council/wolverhampton","WWW.CILEX LAW SC.AC.UK","685.00","Legal Services","8244","Training Expenses","08/02/2016"
"Wolverhampton City Council","http://opendatacommunities.org/id/metropolitan-district-council/wolverhampton","WILKO RETAIL LIMIT","99.92","LAC Transitions Team","5722","Client Allowances","08/02/2016"
"Wolverhampton City Council","http://opendatacommunities.org/id/metropolitan-district-council/wolverhampton","ASDA SUPERSTORE","29.37","Central Baths","5411","Provisions (Not for resale)","08/02/2016"
"Wolverhampton City Council","http://opendatacommunities.org/id/metropolitan-district-council/wolverhampton","WM MORRISONS","8.18","Nelson Mandela House","5411","Provisions (Not for resale)","08/02/2016"
"Wolverhampton City Council","http://opendatacommunities.org/id/metropolitan-district-council/wolverhampton","BRIERLEYHILL CARPETS","183.33","LAC Transitions Team","5713","Client Allowances","08/02/2016"
"Wolverhampton City Council","http://opendatacommunities.org/id/metropolitan-district-council/wolverhampton","Virgintrains.co.uk","191.10","Information & Intelligence","4112","Public Transport","08/02/2016"
"Wolverhampton City Council","http://opendatacommunities.org/id/metropolitan-district-council/wolverhampton","BRIERLEYHILL CARPETS","416.67","LAC Transitions Team","5713","Client Allowances","08/02/2016"
"Wolverhampton City Council","http://opendatacommunities.org/id/metropolitan-district-council/wolverhampton","E01510300000000","60.00","Emergency Duty Team","6011","Financial Assistance In Exceptional Circ","08/02/2016"
"Wolverhampton City Council","http://opendatacommunities.org/id/metropolitan-district-council/wolverhampton","WWW.BRIGHTMINDS.CO.UK","14.11","Education And Access","5945","Equipment - Purchase","05/02/2016"
"Wolverhampton City Council","http://opendatacommunities.org/id/metropolitan-district-council/wolverhampton","OFFICE DEPOT","79.76","Childrens Centres & Early Years","5111","Stationery","05/02/2016"
"Wolverhampton City Council","http://opendatacommunities.org/id/metropolitan-district-council/wolverhampton","REDWINGS LODGE","37.46","Valley Park - CIN SWU S17","7011","Accommodation Costs","05/02/2016"
"Wolverhampton City Council","http://opendatacommunities.org/id/metropolitan-district-council/wolverhampton","ARGOS RETAIL GROUP","49.99","Adoption and Residence Team & Allowances","5310","Equipment - Purchase","05/02/2016"
"Wolverhampton City Council","http://opendatacommunities.org/id/metropolitan-district-council/wolverhampton","Amazon UK Marketplace","86.47","Bert Williams Leisure Centre","5942","Equipment - Purchase","05/02/2016"
"Wolverhampton City Council","http://opendatacommunities.org/id/metropolitan-district-council/wolverhampton","OFFICE DEPOT","10.08","Cemeteries","5111","Stationery","05/02/2016"
"Wolverhampton City Council","http://opendatacommunities.org/id/metropolitan-district-council/wolverhampton","NATWEST BANK","250.00","Valley Park - CIN SWU S17","6011","Financial Assistance In Exceptional Circ","05/02/2016"
"Wolverhampton City Council","http://opendatacommunities.org/id/metropolitan-district-council/wolverhampton","WEST COAST TRAINS","71.00","AES Staff Development","4112","Public Transport","05/02/2016"
"Wolverhampton City Council","http://opendatacommunities.org/id/metropolitan-district-council/wolverhampton","CHEMSOL CYMRU LTD","273.67","Towers Outdoor Education Centre","5199","Fixtures and Fittings - Purchases","05/02/2016"
"Wolverhampton City Council","http://opendatacommunities.org/id/metropolitan-district-council/wolverhampton","BME TRAVEL","450.00","Learning Technologies","4121","Client Transport","05/02/2016"
"Wolverhampton City Council","http://opendatacommunities.org/id/metropolitan-district-council/wolverhampton","ARGOS LTD","42.73","Children's Village Nursery","5310","Equipment - Purchase","05/02/2016"
"Wolverhampton City Council","http://opendatacommunities.org/id/metropolitan-district-council/wolverhampton","LOVE2SHOP.CO.UK","657.95","Information & Intelligence","8641","Educ Trips, Holidays, Outings, Activity","05/02/2016"
"Wolverhampton City Council","http://opendatacommunities.org/id/metropolitan-district-council/wolverhampton","Virgintrains.co.uk","94.05","Members Expenses","4112","Public Transport","05/02/2016"
"Wolverhampton City Council","http://opendatacommunities.org/id/metropolitan-district-council/wolverhampton","B&M RETAIL LTD","24.97","Eastfield 2 - CIN SWU S17","5310","Furniture","05/02/2016"
"Wolverhampton City Council","http://opendatacommunities.org/id/metropolitan-district-council/wolverhampton","CARVER/WOLVERHAMPTON/L","23.89","Bilston Town Hall","5211","Equipment - Purchase","05/02/2016"
"Wolverhampton City Council","http://opendatacommunities.org/id/metropolitan-district-council/wolverhampton","POST OFFICE COUNTER","121.50","LAC Education Team (LACE)","9402","Comms - Postage","05/02/2016"
"Wolverhampton City Council","http://opendatacommunities.org/id/metropolitan-district-council/wolverhampton","OFFICE DEPOT","5.20","Mental Health Assessment & Care Mgmt","5111","Stationery","05/02/2016"
"Wolverhampton City Council","http://opendatacommunities.org/id/metropolitan-district-council/wolverhampton","REDWINGS LODGE","37.46","Valley Park - CIN SWU S17","7011","Accommodation Costs","05/02/2016"
"Wolverhampton City Council","http://opendatacommunities.org/id/metropolitan-district-council/wolverhampton","IKEA ONLINE","122.92","Art Gallery","5719","Equipment - Purchase","05/02/2016"
"Wolverhampton City Council","http://opendatacommunities.org/id/metropolitan-district-council/wolverhampton","123-REG.CO.UK","6.98","Technical Support","4816","Computing - Purchase of Software","05/02/2016"
"Wolverhampton City Council","http://opendatacommunities.org/id/metropolitan-district-council/wolverhampton","POST OFFICE COUNTER","7.25","Adoption and Residence Team & Allowances","9402","Comms - Postage","05/02/2016"
"Wolverhampton City Council","http://opendatacommunities.org/id/metropolitan-district-council/wolverhampton","ARGOS LTD","197.05","LAC Transitions Team","5310","Client Allowances","05/02/2016"
"Wolverhampton City Council","http://opendatacommunities.org/id/metropolitan-district-council/wolverhampton","JUICY FRUITS","118.34","Children's Village Nursery","5411","School Meals","05/02/2016"
"Wolverhampton City Council","http://opendatacommunities.org/id/metropolitan-district-council/wolverhampton","CARVER/WOLVERHAMPTON/L","19.94","Bilston Town Hall","5211","Equipment - Purchase","05/02/2016"
"Wolverhampton City Council","http://opendatacommunities.org/id/metropolitan-district-council/wolverhampton","B&M RETAIL LTD","16.64","Eastfield 2 - CIN SWU S17","5310","Furniture","05/02/2016"
"Wolverhampton City Council","http://opendatacommunities.org/id/metropolitan-district-council/wolverhampton","FACEBOOK N2NQH8WA92","595.92","Communications & Marketing - General","7311","Marketing \ Non-staff advertising","05/02/2016"
"Wolverhampton City Council","http://opendatacommunities.org/id/metropolitan-district-council/wolverhampton","TVLICENSING.CO.UK","121.25","LAC Transitions Team","7392","Client Allowances","05/02/2016"
"Wolverhampton City Council","http://opendatacommunities.org/id/metropolitan-district-council/wolverhampton","REDWINGS LODGE","12.33","Valley Park - CIN SWU S17","7011","Provisions (Not for resale)","05/02/2016"
"Wolverhampton City Council","http://opendatacommunities.org/id/metropolitan-district-council/wolverhampton","WILKO RETAIL LIMIT","6.00","Education And Access","5722","Equipment - Purchase","05/02/2016"
"Wolverhampton City Council","http://opendatacommunities.org/id/metropolitan-district-council/wolverhampton","HUGHES","416.67","LAC Transitions Team","5732","Client Allowances","05/02/2016"
"Wolverhampton City Council","http://opendatacommunities.org/id/metropolitan-district-council/wolverhampton","CUMMINGS BROTHERS LOCK","11.25","Caretakers Community Centre","7399","R&M - Departmental planned (external)","05/02/2016"
"Wolverhampton City Council","http://opendatacommunities.org/id/metropolitan-district-council/wolverhampton","WWW.BAKERROSS.CO.UK","76.49","Education And Access","5970","Materials","05/02/2016"
"Wolverhampton City Council","http://opendatacommunities.org/id/metropolitan-district-council/wolverhampton","TVLICENSING.CO.UK","121.25","LAC Transitions Team","7392","Client Allowances","05/02/2016"
"Wolverhampton City Council","http://opendatacommunities.org/id/metropolitan-district-council/wolverhampton","Amazon UK Marketplace","73.30","Revenues","5942","Books","05/02/2016"
"Wolverhampton City Council","http://opendatacommunities.org/id/metropolitan-district-council/wolverhampton","TVLICENSING.CO.UK","121.25","LAC Transitions Team","7392","Client Allowances","05/02/2016"
"Wolverhampton City Council","http://opendatacommunities.org/id/metropolitan-district-council/wolverhampton","SAIN WEDNESFIELD","50.00","Duke Street Bungalows","6011","Financial Assistance In Exceptional Circ","05/02/2016"
"Wolverhampton City Council","http://opendatacommunities.org/id/metropolitan-district-council/wolverhampton","FACEBOOK Q2NQH8WA92","4.36","Communications & Marketing - General","7311","Marketing \ Non-staff advertising","05/02/2016"
"Wolverhampton City Council","http://opendatacommunities.org/id/metropolitan-district-council/wolverhampton","TESCO STORES 3414","4.00","Civic Centre Catering","5411","Provisions (Not for resale)","05/02/2016"
"Wolverhampton City Council","http://opendatacommunities.org/id/metropolitan-district-council/wolverhampton","Amazon EU","58.32","Maintenance of Exhibits","5969","Equipment - Purchase","05/02/2016"
"Wolverhampton City Council","http://opendatacommunities.org/id/metropolitan-district-council/wolverhampton","EWETSUITS.COM","212.46","Towers Outdoor Education Centre","5941","Equipment - Purchase","05/02/2016"
"Wolverhampton City Council","http://opendatacommunities.org/id/metropolitan-district-council/wolverhampton","TVLICENSING.CO.UK","121.25","LAC Transitions Team","7392","Client Allowances","05/02/2016"
"Wolverhampton City Council","http://opendatacommunities.org/id/metropolitan-district-council/wolverhampton","B & Q","48.27","Ernest Bold Court","5211","Materials","05/02/2016"
"Wolverhampton City Council","http://opendatacommunities.org/id/metropolitan-district-council/wolverhampton","LOYD WEDNESFIELD WOLVE","50.00","Duke Street Bungalows","6011","Financial Assistance In Exceptional Circ","05/02/2016"
"Wolverhampton City Council","http://opendatacommunities.org/id/metropolitan-district-council/wolverhampton","WYNNSTAY ARGICULTURAL","355.54","Towers Outdoor Education Centre","5311","Fixtures and Fittings - Purchases","05/02/2016"
"Wolverhampton City Council","http://opendatacommunities.org/id/metropolitan-district-council/wolverhampton","PAYPAL  BANANAPRINT","14.92","Technical Support","8931","Stationery","05/02/2016"
"Wolverhampton City Council","http://opendatacommunities.org/id/metropolitan-district-council/wolverhampton","MATALAN","7.50","Aldersley Leisure Village Bar","5691","Equipment - Purchase","05/02/2016"
"Wolverhampton City Council","http://opendatacommunities.org/id/metropolitan-district-council/wolverhampton","THE CONSORTIUM/WMS","177.35","Education And Access","5968","Materials","05/02/2016"
"Wolverhampton City Council","http://opendatacommunities.org/id/metropolitan-district-council/wolverhampton","NATWEST BANK","250.00","Valley Park - CIN SWU S17","6011","Financial Assistance In Exceptional Circ","05/02/2016"
"Wolverhampton City Council","http://opendatacommunities.org/id/metropolitan-district-council/wolverhampton","POUNDSTRETCHER 147","16.66","LAC Transitions Team","5714","Client Allowances","04/02/2016"
"Wolverhampton City Council","http://opendatacommunities.org/id/metropolitan-district-council/wolverhampton","OFFICE DEPOT","43.55","Public Health Support Costs","5111","Stationery","04/02/2016"
"Wolverhampton City Council","http://opendatacommunities.org/id/metropolitan-district-council/wolverhampton","Amazon UK Marketplace","34.03","Site Development Asset Management","5942","Computing - Consumables","04/02/2016"
"Wolverhampton City Council","http://opendatacommunities.org/id/metropolitan-district-council/wolverhampton","OFFICE DEPOT","5.20","Register Office","5111","Stationery","04/02/2016"
"Wolverhampton City Council","http://opendatacommunities.org/id/metropolitan-district-council/wolverhampton","K O MACHINES LTD","117.67","Northicote Farm","5013","Equipment - R & M","04/02/2016"
"Wolverhampton City Council","http://opendatacommunities.org/id/metropolitan-district-council/wolverhampton","OFFICE DEPOT","326.89","Global Budgets","5111","Stationery","04/02/2016"
"Wolverhampton City Council","http://opendatacommunities.org/id/metropolitan-district-council/wolverhampton","TESCO STORES 6727","10.92","Restorative Justice","5411","Provisions (Not for resale)","04/02/2016"
"Wolverhampton City Council","http://opendatacommunities.org/id/metropolitan-district-council/wolverhampton","HMCOURTS-SERVICE.G","20.00","Mental Health Assessment & Care Mgmt","9222","Services - Fees and Charges","04/02/2016"
"Wolverhampton City Council","http://opendatacommunities.org/id/metropolitan-district-council/wolverhampton","G & M HALE (SUNDRIES)","24.60","Creative Studies Delivery Area","5992","Materials for resale","04/02/2016"
"Wolverhampton City Council","http://opendatacommunities.org/id/metropolitan-district-council/wolverhampton","BRITISH HEART FOUNDATI","95.83","LAC Transitions Team","8398","Client Allowances","04/02/2016"
"Wolverhampton City Council","http://opendatacommunities.org/id/metropolitan-district-council/wolverhampton","Amazon UK Marketplace","25.42","Site Development Asset Management","5942","Computing - Consumables","04/02/2016"
"Wolverhampton City Council","http://opendatacommunities.org/id/metropolitan-district-council/wolverhampton","Virgintrains.co.uk","255.00","Looked After Team 1","4112","Public Transport","04/02/2016"
"Wolverhampton City Council","http://opendatacommunities.org/id/metropolitan-district-council/wolverhampton","Virgintrains.co.uk","150.00","SWP - Infrastructure","4112","Public Transport","04/02/2016"
"Wolverhampton City Council","http://opendatacommunities.org/id/metropolitan-district-council/wolverhampton","OFFICE DEPOT","10.40","MAST 6 - Priory Green","5111","Stationery","04/02/2016"
"Wolverhampton City Council","http://opendatacommunities.org/id/metropolitan-district-council/wolverhampton","JOHNSTONES DEC CENTRE","14.67","Bilston Town Hall","5231","Equipment - Purchase","04/02/2016"
"Wolverhampton City Council","http://opendatacommunities.org/id/metropolitan-district-council/wolverhampton","SAIN ST MARKS","250.00","Childrens with Disabilities Team","6011","Financial Assistance In Exceptional Circ","04/02/2016"
"Wolverhampton City Council","http://opendatacommunities.org/id/metropolitan-district-council/wolverhampton","WEST MID TRAVEL","182.85","Business Manager - Place","4131","Public Transport","04/02/2016"
"Wolverhampton City Council","http://opendatacommunities.org/id/metropolitan-district-council/wolverhampton","Amazon Prime","79.00","MAST 8 - Wednesfield","5968","Subscriptions","04/02/2016"
"Wolverhampton City Council","http://opendatacommunities.org/id/metropolitan-district-council/wolverhampton","TVLICENSING.CO.UK","121.25","LAC Transitions Team","7392","Services - Consultants","04/02/2016"
"Wolverhampton City Council","http://opendatacommunities.org/id/metropolitan-district-council/wolverhampton","TRAINLINE","221.24","Looked After Team 1","4112","Public Transport","04/02/2016"
"Wolverhampton City Council","http://opendatacommunities.org/id/metropolitan-district-council/wolverhampton","OFFICE DEPOT","56.74","Financial Assessments","5111","Stationery","04/02/2016"
"Wolverhampton City Council","http://opendatacommunities.org/id/metropolitan-district-council/wolverhampton","CUMMINGS BROTHERS LOCK","29.17","Caretakers Community Centre","7399","R&M - Departmental planned (external)","04/02/2016"
"Wolverhampton City Council","http://opendatacommunities.org/id/metropolitan-district-council/wolverhampton","CUMMINGS BROTHERS LOCK","12.08","Caretakers Community Centre","7399","R&M - Departmental planned (external)","04/02/2016"
"Wolverhampton City Council","http://opendatacommunities.org/id/metropolitan-district-council/wolverhampton","CARVER/WOLVERHAMPTON/L","84.74","Ground Maintenance East","5211","Equipment - Purchase","04/02/2016"
"Wolverhampton City Council","http://opendatacommunities.org/id/metropolitan-district-council/wolverhampton","CASH GENERATOR","124.99","LAC Transitions Team","5999","Client Allowances","04/02/2016"
"Wolverhampton City Council","http://opendatacommunities.org/id/metropolitan-district-council/wolverhampton","HOTELS COM127517025423","129.50","Mayoral Expenses","4722","Training Expenses","04/02/2016"
"Wolverhampton City Council","http://opendatacommunities.org/id/metropolitan-district-council/wolverhampton","WM MORRISON 024","8.51","Ernest Bold Court","5411","Provisions (Not for resale)","04/02/2016"
"Wolverhampton City Council","http://opendatacommunities.org/id/metropolitan-district-council/wolverhampton","Wix.com","93.13","Technical Support","5817","Computing - Purchase of Software","04/02/2016"
"Wolverhampton City Council","http://opendatacommunities.org/id/metropolitan-district-council/wolverhampton","WEST COAST TRAINS","220.20","Graiseley - CIN SWU S17","4112","Public Transport","04/02/2016"
"Wolverhampton City Council","http://opendatacommunities.org/id/metropolitan-district-council/wolverhampton","123-REG.CO.UK","21.98","Public Health Inclusion Budget","4816","Computing - Purchase of Software","04/02/2016"
"Wolverhampton City Council","http://opendatacommunities.org/id/metropolitan-district-council/wolverhampton","ASDA SUPERSTORE","-107.50","LAC Transitions Team","5411","Client Allowances","04/02/2016"
"Wolverhampton City Council","http://opendatacommunities.org/id/metropolitan-district-council/wolverhampton","TESCO STORES 5194","179.67","Towers Outdoor Education Centre","5411","Provisions (Not for resale)","04/02/2016"
"Wolverhampton City Council","http://opendatacommunities.org/id/metropolitan-district-council/wolverhampton","OFFICE DEPOT","32.82","City Direct","5111","Stationery","04/02/2016"
"Wolverhampton City Council","http://opendatacommunities.org/id/metropolitan-district-council/wolverhampton","TRAINLINE","401.78","Looked After Team 1","4112","Public Transport","03/02/2016"
"Wolverhampton City Council","http://opendatacommunities.org/id/metropolitan-district-council/wolverhampton","Virgintrains.co.uk","136.10","Corporate Policy and Equalities","4112","Public Transport","03/02/2016"
"Wolverhampton City Council","http://opendatacommunities.org/id/metropolitan-district-council/wolverhampton","OFFICE DEPOT","12.92","Public Health Support Costs","5111","Stationery","03/02/2016"
"Wolverhampton City Council","http://opendatacommunities.org/id/metropolitan-district-council/wolverhampton","ASDA STORE","11.67","LAC Transitions Team","5411","Client Allowances","03/02/2016"
"Wolverhampton City Council","http://opendatacommunities.org/id/metropolitan-district-council/wolverhampton","B&M RETAIL LTD","-19.52","Graiseley - CIN SWU S17","5310","Client Allowances","03/02/2016"
"Wolverhampton City Council","http://opendatacommunities.org/id/metropolitan-district-council/wolverhampton","Amazon Svcs Europe,SAR","39.97","Headstart","5942","Books","03/02/2016"
"Wolverhampton City Council","http://opendatacommunities.org/id/metropolitan-district-council/wolverhampton","LICENSING SERVICES","23.00","Wolverhampton Indoor and Open Market","8299","Services - General Licences","03/02/2016"
"Wolverhampton City Council","http://opendatacommunities.org/id/metropolitan-district-council/wolverhampton","TRAINLINE","-382.40","Looked After Team 1","4112","Public Transport","03/02/2016"
"Wolverhampton City Council","http://opendatacommunities.org/id/metropolitan-district-council/wolverhampton","THE POST OFFICE","58.75","Looked After Team 1","9402","Services - Fees and Charges","03/02/2016"
"Wolverhampton City Council","http://opendatacommunities.org/id/metropolitan-district-council/wolverhampton","ASDA HOME SHOPPING","0.13","Ernest Bold Court","5411","Provisions (Not for resale)","03/02/2016"
"Wolverhampton City Council","http://opendatacommunities.org/id/metropolitan-district-council/wolverhampton","THE POST OFFICE","15.12","CIN - Warstones MAST - Area 4","9402","Comms - Postage","03/02/2016"
"Wolverhampton City Council","http://opendatacommunities.org/id/metropolitan-district-council/wolverhampton","POUNDWORLD RETAIL","5.83","Education And Access","5310","Equipment - Purchase","03/02/2016"
"Wolverhampton City Council","http://opendatacommunities.org/id/metropolitan-district-council/wolverhampton","ARGOS LTD","-180.43","Graiseley - CIN SWU S17","5310","Client Allowances","03/02/2016"
"Wolverhampton City Council","http://opendatacommunities.org/id/metropolitan-district-council/wolverhampton","COMBINED COURT","280.00","Legal Services","9222","Services - Fees and Charges","03/02/2016"
"Wolverhampton City Council","http://opendatacommunities.org/id/metropolitan-district-council/wolverhampton","CLAREGATE S.STN FS408","5.82","Aldersley Leisure Village","5541","Materials","03/02/2016"
"Wolverhampton City Council","http://opendatacommunities.org/id/metropolitan-district-council/wolverhampton","WEST COAST TRAINS","3.50","Road Safety","4112","Public Transport","03/02/2016"
"Wolverhampton City Council","http://opendatacommunities.org/id/metropolitan-district-council/wolverhampton","TFM FARM & COUNTRY SUP","53.74","Northicote Farm","5399","Equipment - Purchase","03/02/2016"
"Wolverhampton City Council","http://opendatacommunities.org/id/metropolitan-district-council/wolverhampton","ADY WEEBLY","129.00","Technical Support","5817","Computing - Purchase of Software","03/02/2016"
"Wolverhampton City Council","http://opendatacommunities.org/id/metropolitan-district-council/wolverhampton","OFFICE DEPOT","2.06","Mayoral Expenses","5111","Stationery","03/02/2016"
"Wolverhampton City Council","http://opendatacommunities.org/id/metropolitan-district-council/wolverhampton","TRAINLINE","24.23","Legal Services","4112","Public Transport","03/02/2016"
"Wolverhampton City Council","http://opendatacommunities.org/id/metropolitan-district-council/wolverhampton","ASDA HOME SHOPPING","-2.00","Ernest Bold Court","5411","Provisions (Not for resale)","03/02/2016"
"Wolverhampton City Council","http://opendatacommunities.org/id/metropolitan-district-council/wolverhampton","G & M HALE (SUNDRIES)","12.95","Discretionary Fund","5992","Materials","03/02/2016"
"Wolverhampton City Council","http://opendatacommunities.org/id/metropolitan-district-council/wolverhampton","HM PASSPORT OFFICE","72.50","LAC Transitions Team","9399","Services - Fees and Charges","03/02/2016"
"Wolverhampton City Council","http://opendatacommunities.org/id/metropolitan-district-council/wolverhampton","TOOLSTATION LTD","11.14","Education Catering - General Overheads","5251","Equipment - Purchase","03/02/2016"
"Wolverhampton City Council","http://opendatacommunities.org/id/metropolitan-district-council/wolverhampton","REDWINGS LODGE","8.58","Valley Park - CIN SWU S17","7011","Provisions (Not for resale)","03/02/2016"
"Wolverhampton City Council","http://opendatacommunities.org/id/metropolitan-district-council/wolverhampton","JAMES LISTER & SONS LT","49.00","Wholesale Market Facilities Management","5085","Clothing / Uniforms","03/02/2016"
"Wolverhampton City Council","http://opendatacommunities.org/id/metropolitan-district-council/wolverhampton","RYMAN","9.98","Physical & Sensory Disabilities Mgmt","5943","Stationery","03/02/2016"
"Wolverhampton City Council","http://opendatacommunities.org/id/metropolitan-district-council/wolverhampton","ARGOS RETAIL GROUP","165.78","Central Baths","5310","Equipment - Purchase","03/02/2016"
"Wolverhampton City Council","http://opendatacommunities.org/id/metropolitan-district-council/wolverhampton","REDWINGS LODGE","1.25","Valley Park - CIN SWU S17","7011","Provisions (Not for resale)","03/02/2016"
"Wolverhampton City Council","http://opendatacommunities.org/id/metropolitan-district-council/wolverhampton","PC WORLD","10.00","Blakenhall Commty & Healthy Living Ctr","5732","Stationery","03/02/2016"
"Wolverhampton City Council","http://opendatacommunities.org/id/metropolitan-district-council/wolverhampton","SCREWFIX DIRECT","119.02","Civic Centre","5211","Materials","03/02/2016"
"Wolverhampton City Council","http://opendatacommunities.org/id/metropolitan-district-council/wolverhampton","Virgintrains.co.uk","125.85","Democratic Support","4112","Public Transport","03/02/2016"
"Wolverhampton City Council","http://opendatacommunities.org/id/metropolitan-district-council/wolverhampton","G & M HALE LTD","146.00","College of Further Education","5992","Equipment - Purchase","03/02/2016"
"Wolverhampton City Council","http://opendatacommunities.org/id/metropolitan-district-council/wolverhampton","Amazon UK Marketplace","79.13","Central Baths","5942","Books","03/02/2016"
"Wolverhampton City Council","http://opendatacommunities.org/id/metropolitan-district-council/wolverhampton","SWIMMING TEACHERS ASSO","47.00","WV Active Business Support","7999","Services - Professional Fees","03/02/2016"
"Wolverhampton City Council","http://opendatacommunities.org/id/metropolitan-district-council/wolverhampton","FINDEL ED LTD","404.74","Children's Village Nursery","5969","Equipment - Purchase","03/02/2016"
"Wolverhampton City Council","http://opendatacommunities.org/id/metropolitan-district-council/wolverhampton","ASDA HOME SHOPPING","92.89","Ernest Bold Court","5411","Provisions (Not for resale)","03/02/2016"
"Wolverhampton City Council","http://opendatacommunities.org/id/metropolitan-district-council/wolverhampton","POST OFFICE COUNTER","21.60","MAST - Central Team","9402","Comms - Postage","03/02/2016"
"Wolverhampton City Council","http://opendatacommunities.org/id/metropolitan-district-council/wolverhampton","SAINSBURYS (2340)","4.60","Mayoral Expenses","5411","Hospitality","03/02/2016"
"Wolverhampton City Council","http://opendatacommunities.org/id/metropolitan-district-council/wolverhampton","123-REG.CO.UK","9.98","Eduction Business Partnership","4816","Computing - Purchase of Software","03/02/2016"
"Wolverhampton City Council","http://opendatacommunities.org/id/metropolitan-district-council/wolverhampton","REDWINGS LODGE","74.92","Valley Park - CIN SWU S17","7011","Accommodation Costs","02/02/2016"
"Wolverhampton City Council","http://opendatacommunities.org/id/metropolitan-district-council/wolverhampton","LICENSING SERVICES","115.00","Wolverhampton Indoor and Open Market","8299","Services - General Licences","02/02/2016"
"Wolverhampton City Council","http://opendatacommunities.org/id/metropolitan-district-council/wolverhampton","SCREWFIX DIRECT","77.91","Art Gallery","5211","Materials","02/02/2016"
"Wolverhampton City Council","http://opendatacommunities.org/id/metropolitan-district-council/wolverhampton","WM MORRISONS","8.56","Specialist Support Service - North","5411","Provisions (Not for resale)","02/02/2016"
"Wolverhampton City Council","http://opendatacommunities.org/id/metropolitan-district-council/wolverhampton","ASDA SUPERSTORE","56.67","LAC Transitions Team","5411","Client Allowances","02/02/2016"
"Wolverhampton City Council","http://opendatacommunities.org/id/metropolitan-district-council/wolverhampton","COMBINED COURT","100.00","Legal Services","9222","Services - Fees and Charges","02/02/2016"
"Wolverhampton City Council","http://opendatacommunities.org/id/metropolitan-district-council/wolverhampton","PAYPAL  BERNHARD CO","257.38","Fleet Management","0763","Equipment - R & M","02/02/2016"
"Wolverhampton City Council","http://opendatacommunities.org/id/metropolitan-district-council/wolverhampton","Virgintrains.co.uk","-7.00","Members Expenses","4112","Public Transport","02/02/2016"
"Wolverhampton City Council","http://opendatacommunities.org/id/metropolitan-district-council/wolverhampton","COMBINED COURT","60.00","Legal Services","9222","Services - Fees and Charges","02/02/2016"
"Wolverhampton City Council","http://opendatacommunities.org/id/metropolitan-district-council/wolverhampton","Amazon UK Marketplace","41.95","SEN Sensory Inclusion","5942","Equipment - Purchase","02/02/2016"
"Wolverhampton City Council","http://opendatacommunities.org/id/metropolitan-district-council/wolverhampton","WM MORRISON 024","10.00","MAST 2 - Bilston","5411","Provisions (Not for resale)","02/02/2016"
"Wolverhampton City Council","http://opendatacommunities.org/id/metropolitan-district-council/wolverhampton","POST OFFICE COUNTER","9.62","Whitmore Reans - CIN SWU S17","9402","Comms - Postage","02/02/2016"
"Wolverhampton City Council","http://opendatacommunities.org/id/metropolitan-district-council/wolverhampton","HERON FOODS LTD","15.07","Ernest Bold Court","5499","Catering","02/02/2016"
"Wolverhampton City Council","http://opendatacommunities.org/id/metropolitan-district-council/wolverhampton","BRITANNIA","86.00","Priory Green - CIN SWU S17","7011","No Recourse to Public Funds","02/02/2016"
"Wolverhampton City Council","http://opendatacommunities.org/id/metropolitan-district-council/wolverhampton","SAINSBURYS 2040","4.00","Ernest Bold Court","5411","Provisions (Not for resale)","02/02/2016"
"Wolverhampton City Council","http://opendatacommunities.org/id/metropolitan-district-council/wolverhampton","TRAINLINE","17.59","Legal Services","4112","Public Transport","02/02/2016"
"Wolverhampton City Council","http://opendatacommunities.org/id/metropolitan-district-council/wolverhampton","Virgintrains.co.uk","-79.50","Members Expenses","4112","Public Transport","02/02/2016"
"Wolverhampton City Council","http://opendatacommunities.org/id/metropolitan-district-council/wolverhampton","SAINSBURYS (2340)","17.58","Mayoral Expenses","5411","Hospitality","02/02/2016"
"Wolverhampton City Council","http://opendatacommunities.org/id/metropolitan-district-council/wolverhampton","POST OFFICE COUNTER","0.74","Whitmore Reans - CIN SWU S17","9402","Comms - Postage","02/02/2016"
"Wolverhampton City Council","http://opendatacommunities.org/id/metropolitan-district-council/wolverhampton","SAIN WEDNESFIELD","70.00","Duke Street Bungalows","6011","Public Transport","02/02/2016"
"Wolverhampton City Council","http://opendatacommunities.org/id/metropolitan-district-council/wolverhampton","ARGOS LTD","29.99","Children's Village Children Centre","5310","Equipment - Purchase","02/02/2016"
"Wolverhampton City Council","http://opendatacommunities.org/id/metropolitan-district-council/wolverhampton","DEVLIN WHOLESALE TAMWO","123.33","LAC Transitions Team","5713","Client Allowances","02/02/2016"
"Wolverhampton City Council","http://opendatacommunities.org/id/metropolitan-district-council/wolverhampton","ASDA SUPERSTORE","45.29","Civic Centre Catering","5411","Provisions (Not for resale)","02/02/2016"
"Wolverhampton City Council","http://opendatacommunities.org/id/metropolitan-district-council/wolverhampton","POST OFFICE COUNTER","10.45","MAST - Central Team","9402","Comms - Postage","02/02/2016"
"Wolverhampton City Council","http://opendatacommunities.org/id/metropolitan-district-council/wolverhampton","PP VINYLWAREHO","13.99","Art Gallery","5719","Equipment - Purchase","02/02/2016"
"Wolverhampton City Council","http://opendatacommunities.org/id/metropolitan-district-council/wolverhampton","ARGOS LTD","132.18","LAC Transitions Team","5310","Client Allowances","02/02/2016"
"Wolverhampton City Council","http://opendatacommunities.org/id/metropolitan-district-council/wolverhampton","FTPE WEBTIS 1","74.70","LAC Transitions Team","4112","Client Allowances","02/02/2016"
"Wolverhampton City Council","http://opendatacommunities.org/id/metropolitan-district-council/wolverhampton","DEVLIN WHOLESALE TAMWO","416.67","LAC Transitions Team","5713","Client Allowances","02/02/2016"
"Wolverhampton City Council","http://opendatacommunities.org/id/metropolitan-district-council/wolverhampton","TRODAT (UK) LTD","22.72","Legal Services","5943","Stationery","02/02/2016"
"Wolverhampton City Council","http://opendatacommunities.org/id/metropolitan-district-council/wolverhampton","BEATTIES","15.00","Mayoral Expenses","5311","Equipment - Purchase","02/02/2016"
"Wolverhampton City Council","http://opendatacommunities.org/id/metropolitan-district-council/wolverhampton","THE COAL AUTHORITY","34.80","Legal Services","9399","Services - Fees and Charges","02/02/2016"
"Wolverhampton City Council","http://opendatacommunities.org/id/metropolitan-district-council/wolverhampton","INST OF OPTOMETRY","102.50","SEN Sensory Inclusion","8043","Equipment - Purchase","02/02/2016"
"Wolverhampton City Council","http://opendatacommunities.org/id/metropolitan-district-council/wolverhampton","ARGOS LTD","395.80","LAC Transitions Team","5310","Client Allowances","02/02/2016"
"Wolverhampton City Council","http://opendatacommunities.org/id/metropolitan-district-council/wolverhampton","UNTOUCHABLES","10.62","Education Catering - General Overheads","5231","Materials","02/02/2016"
"Wolverhampton City Council","http://opendatacommunities.org/id/metropolitan-district-council/wolverhampton","OFFICE DEPOT","14.71","Welfare Rights","5111","Stationery","02/02/2016"
"Wolverhampton City Council","http://opendatacommunities.org/id/metropolitan-district-council/wolverhampton","Amazon EU","34.43","Customer Services","5969","Equipment - Purchase","02/02/2016"
"Wolverhampton City Council","http://opendatacommunities.org/id/metropolitan-district-council/wolverhampton","ARGOS LTD","86.02","LAC Transitions Team","5310","Client Allowances","02/02/2016"
"Wolverhampton City Council","http://opendatacommunities.org/id/metropolitan-district-council/wolverhampton","WM MORRISON 024","4.64","Ernest Bold Court","5411","Provisions (Not for resale)","01/02/2016"
"Wolverhampton City Council","http://opendatacommunities.org/id/metropolitan-district-council/wolverhampton","BRITANNIA WOLVERHA","38.00","Dove - CIN SWU S17","7011","Services - Supplies & Services to users","01/02/2016"
"Wolverhampton City Council","http://opendatacommunities.org/id/metropolitan-district-council/wolverhampton","WWW.SEVERNTRENTSEARCHE","546.00","Legal Services","4900","Electricity","01/02/2016"
"Wolverhampton City Council","http://opendatacommunities.org/id/metropolitan-district-council/wolverhampton","AUTOTIME SOLUTIONS","89.00","Ground Maintenance East","5943","Stationery","01/02/2016"
"Wolverhampton City Council","http://opendatacommunities.org/id/metropolitan-district-council/wolverhampton","RAMADA INNS","1000.00","LAC Education Team (LACE)","3637","Room Hire","01/02/2016"
"Wolverhampton City Council","http://opendatacommunities.org/id/metropolitan-district-council/wolverhampton","OFFICE DEPOT","16.80","Mayoral Expenses","5111","Stationery","01/02/2016"
"Wolverhampton City Council","http://opendatacommunities.org/id/metropolitan-district-council/wolverhampton","SAINSBURYS (2340)","84.90","AES Staff Development","5411","Provisions (Not for resale)","01/02/2016"
"Wolverhampton City Council","http://opendatacommunities.org/id/metropolitan-district-council/wolverhampton","Amazon UK Marketplace","33.00","SEN Early Years Team","5942","Equipment - Purchase","01/02/2016"
"Wolverhampton City Council","http://opendatacommunities.org/id/metropolitan-district-council/wolverhampton","Amazon UK Marketplace","54.00","Bert Williams Leisure Centre","5942","Equipment - Purchase","01/02/2016"
"Wolverhampton City Council","http://opendatacommunities.org/id/metropolitan-district-council/wolverhampton","OFFICE DEPOT","214.02","Register Office","5111","Stationery","01/02/2016"
"Wolverhampton City Council","http://opendatacommunities.org/id/metropolitan-district-council/wolverhampton","ASDA HOME SHOPPING","84.49","Ernest Bold Court","5411","Provisions (Not for resale)","01/02/2016"
"Wolverhampton City Council","http://opendatacommunities.org/id/metropolitan-district-council/wolverhampton","Amazon EU","101.79","Technical Support","5969","Computing - Purchase of Hardware","01/02/2016"
"Wolverhampton City Council","http://opendatacommunities.org/id/metropolitan-district-council/wolverhampton","OFFICE DEPOT","42.09","Mayoral Expenses","5111","Stationery","01/02/2016"
"Wolverhampton City Council","http://opendatacommunities.org/id/metropolitan-district-council/wolverhampton","Amazon EU","240.00","SEN Early Years Team","5969","Equipment - Purchase","01/02/2016"
"Wolverhampton City Council","http://opendatacommunities.org/id/metropolitan-district-council/wolverhampton","WWW.MACARTS.CO.UK","60.00","Music Support Team","7991","Services - Professional Fees","01/02/2016"
"Wolverhampton City Council","http://opendatacommunities.org/id/metropolitan-district-council/wolverhampton","TRAINLINE","380.46","Music Support Team","4112","Services - Professional Fees","01/02/2016"
"Wolverhampton City Council","http://opendatacommunities.org/id/metropolitan-district-council/wolverhampton","SAINSBURYS 2040","16.67","Duke Street Bungalows","5411","Provisions (Not for resale)","01/02/2016"
"Wolverhampton City Council","http://opendatacommunities.org/id/metropolitan-district-council/wolverhampton","THE COAL AUTHORITY","82.80","Legal Services","9399","Services - Fees and Charges","01/02/2016"
"Wolverhampton City Council","http://opendatacommunities.org/id/metropolitan-district-council/wolverhampton","RAMADA INNS","1000.00","LAC Education Team (LACE)","3637","Conference Expenses","01/02/2016"
"Wolverhampton City Council","http://opendatacommunities.org/id/metropolitan-district-council/wolverhampton","ASDA SUPERSTORE","243.86","Upper Pendeford Farm Childrens Home","5411","Provisions (Not for resale)","01/02/2016"
"Wolverhampton City Council","http://opendatacommunities.org/id/metropolitan-district-council/wolverhampton","BRITANNIA WOLVERHA","147.00","Dove - CIN SWU S17","7011","Services - Supplies & Services to users","01/02/2016"
"Wolverhampton City Council","http://opendatacommunities.org/id/metropolitan-district-council/wolverhampton","WEST COAST TRAINS","86.30","AES Staff Development","4112","Public Transport","01/02/2016"
"Wolverhampton City Council","http://opendatacommunities.org/id/metropolitan-district-council/wolverhampton","OFFICE DEPOT","8.32","Bert Williams Leisure Centre","5111","Stationery","01/02/2016"
"Wolverhampton City Council","http://opendatacommunities.org/id/metropolitan-district-council/wolverhampton","PRIMARK","56.75","LAC Transitions Team","5651","Client Allowances","01/02/2016"
"Wolverhampton City Council","http://opendatacommunities.org/id/metropolitan-district-council/wolverhampton","FACEBOOK Y6DRB86B92","417.61","Communications & Marketing - General","7311","Marketing \ Non-staff advertising","01/02/2016"
"Wolverhampton City Council","http://opendatacommunities.org/id/metropolitan-district-council/wolverhampton","WOOD FINISHES DIRECT L","93.67","Art Gallery","5231","Cleaning Supplies and Materials","01/02/2016"
"Wolverhampton City Council","http://opendatacommunities.org/id/metropolitan-district-council/wolverhampton","SCCI ALPHATRACK LT","802.30","Aldersley Leisure Village","4812","R&M - Departmental planned (external)","01/02/2016"
"Wolverhampton City Council","http://opendatacommunities.org/id/metropolitan-district-council/wolverhampton","Amazon UK Marketplace","5.79","MAST 6 - Priory Green","5942","Equipment - R & M","01/02/2016"
"Wolverhampton City Council","http://opendatacommunities.org/id/metropolitan-district-council/wolverhampton","THETICKETFACTORY","-68.40","Midland Box Office","7922","Events","01/02/2016"
"Wolverhampton City Council","http://opendatacommunities.org/id/metropolitan-district-council/wolverhampton","ASDA HOME SHOPPING","-0.05","Ernest Bold Court","5411","Provisions (Not for resale)","01/02/2016"
"Wolverhampton City Council","http://opendatacommunities.org/id/metropolitan-district-council/wolverhampton","Amazon UK Marketplace","8.32","Creative Studies Delivery Area","5942","Equipment - Purchase","01/02/2016"
"Wolverhampton City Council","http://opendatacommunities.org/id/metropolitan-district-council/wolverhampton","TRAINLINE","150.55","Looked After Team 1","4112","Public Transport","01/02/2016"
"Wolverhampton City Council","http://opendatacommunities.org/id/metropolitan-district-council/wolverhampton","WICKES","198.78","Play General","5211","Materials","01/02/2016"
"Wolverhampton City Council","http://opendatacommunities.org/id/metropolitan-district-council/wolverhampton","Amazon UK Marketplace","39.76","Creative Studies Delivery Area","5942","Subsistence","01/02/2016"
"Wolverhampton City Council","http://opendatacommunities.org/id/metropolitan-district-council/wolverhampton","Wix.com","46.57","Technical Support","5817","Computing - Purchase of Software","01/02/2016"
"Wolverhampton City Council","http://opendatacommunities.org/id/metropolitan-district-council/wolverhampton","WWW.BIRMINGHAM.GOV.UK","22.00","Looked After Team 1","8299","Services - Fees and Charges","01/02/2016"
"Wolverhampton City Council","http://opendatacommunities.org/id/metropolitan-district-council/wolverhampton","PIXELS (UK) LTD","2584.58","DCMS Wolfson - Contemp Gallery Refurb","5732","Equipment - Purchase","01/02/2016"
"Wolverhampton City Council","http://opendatacommunities.org/id/metropolitan-district-council/wolverhampton","TRAINLINE","190.23","Music Support Team","4112","Services - Professional Fees","01/02/2016"
"Wolverhampton City Council","http://opendatacommunities.org/id/metropolitan-district-council/wolverhampton","FACEBOOK Z6DRB86B92","3.88","Communications & Marketing - General","7311","Marketing \ Non-staff advertising","01/02/2016"
"Wolverhampton City Council","http://opendatacommunities.org/id/metropolitan-district-council/wolverhampton","WWW.CLICKCLEANING.CO.U","31.98","Art Gallery","2842","Cleaning Supplies and Materials","01/02/2016"
"Wolverhampton City Council","http://opendatacommunities.org/id/metropolitan-district-council/wolverhampton","BAG SHOP","20.83","Service Wide","5631","Equipment - Purchase","01/02/2016"
"Wolverhampton City Council","http://opendatacommunities.org/id/metropolitan-district-council/wolverhampton","OFFICE DEPOT","27.41","Cemeteries","5111","Stationery","01/02/2016"
"Wolverhampton City Council","http://opendatacommunities.org/id/metropolitan-district-council/wolverhampton","BRITANNIA WOLVERHA","38.00","Dove - CIN SWU S17","7011","Services - Supplies & Services to users","01/02/2016"
"Wolverhampton City Council","http://opendatacommunities.org/id/metropolitan-district-council/wolverhampton","Amazon UK Marketplace","9.72","MAST 6 - Priory Green","5942","Stationery","01/02/2016"
"Wolverhampton City Council","http://opendatacommunities.org/id/metropolitan-district-council/wolverhampton","TENABLE NETWORK SECURI","1043.51","Customer Services","5045","Computing - Purchase of Hardware","01/02/2016"
"Wolverhampton City Council","http://opendatacommunities.org/id/metropolitan-district-council/wolverhampton","TESCO STORE 3414","70.00","School Crossing Patrol","5411","Comms - Mobile Telephones","01/02/2016"
"Wolverhampton City Council","http://opendatacommunities.org/id/metropolitan-district-council/wolverhampton","SCREWFIX DIRECT","909.06","Play General","5211","Equipment - Purchase","01/02/2016"
"Wolverhampton City Council","http://opendatacommunities.org/id/metropolitan-district-council/wolverhampton","OFFICE DEPOT","33.43","Members Expenses","5111","Stationery","01/02/2016"
"Wolverhampton City Council","http://opendatacommunities.org/id/metropolitan-district-council/wolverhampton","OFFICE DEPOT","2.34","Adoption Team","5111","Stationery","01/02/2016"
"Wolverhampton City Council","http://opendatacommunities.org/id/metropolitan-district-council/wolverhampton","Amazon UK Marketplace","299.80","Customer Services","5942","Books","01/02/2016"
